Workbook

Sheet Index
A1: The Empire District Electric Company
A2: Test Year Ending September 30, 2020
A3: ER-2021-0312
A4: Index - Schedules
A7: Section | B7: Description
A9: A. | B9: Index & Inputs
C10: Index | F10: Index of Schedules
A12: B. | B12: Rate Base and Revenue Requirement
C13: Schedule B-1 | F13: Revenue Requirement
C14: Schedule B-2 | F14: Rate Base Summary
C15: Schedule B-3 | F15: Accumulated Deferred Income Taxes
C16: Schedule B-4 | F16: Wind Revenues Liability
C17: Schedule B-5 | F17: Wind Asset Retirement Obligations
A19: C. | B19: Plant Investment
C20: Schedule C-1 | F20: Plant in Service
A22: D. | B22: Accumulated Provision for Depreciation, Amortization & Depletion
C23: Schedule D-1 | F23: Accumulated Depreciation/Amortization
A25: F. | B25: Capital & Cost of Money
C26: Schedule E-1 | F26: WACC - Weighted Average Cost of Capital
C27: Schedule E-2 | F27: WACD - Weighted Average Cost of Debt
A29: H. | B29: Test Year & Pro Forma Income Statements
C30: Schedule F-1 | F30: Operating Income Statement of Empire
C31: Schedule F-2 | F31: Operating Income Statement of Empire's Share of the Wind Holding Companies
C32: Schedule F-3 | F32: Operating Income Detail
C33: Schedule F-4 | F33: Property Tax
C34: Schedule F-5 | F34: Wind Revenue Detail
C35: Schedule F-6 | F35: Vestas Settlement Reduction to Operating Expense
C36: Schedule F-7 | F36: Amortization of ARO Asset
C37: Schedule F-8 | F37: Wind Revenues Liability Amortization
A39: I. | B39: Depreciation and Amortization
C40: Schedule G-1 | F40: Depreciation Expense

Sheet Input (hidden)
A1: =Index!A1 -> The Empire District Electric Company
A2: =Index!A2 -> Test Year Ending September 30, 2020
A3: =Index!A3 -> ER-2021-0312
A4: Inputs
A6: Line No. | B6: Input Description | C6: Input Amount
A8: 1 | B8: Neosho Ridge Tax Equity Project Funding | C8: 0.4788813056
A9: =A8+1 -> 2 | B9: North Fork Ridge Tax Equity Project Funding | C9: 0.4841795634
A10: =A9+1 -> 3 | B10: Kings Point Tax Equity Project Funding | C10: 0.4728950322
A11: 4 | B11: Neosho Ridge Liberty-Empire Project Funding | C11: =1-C8 -> 0.5211186944
A12: 5 | B12: North Fork Ridge Liberty-Empire Project Funding | C12: =1-C9 -> 0.5158204366
A13: 6 | B13: Kings Point Liberty-Empire Project Funding | C13: =1-C10 -> 0.5271049678
A14: 7 | B14: Neosho Ridge WTG's | C14: 139
A15: 8 | B15: North Fork Ridge WTG's | C15: 69
A16: 9 | B16: Kinds Point WTG's | C16: 69
A17: =A16+1 -> 10 | B17: Neosho Ridge PSA Closing Month End | C17: 2021-05-30
A18: 11 | B18: North Fork Ridge PSA Closing Month End | C18: 2021-01-31
A19: 12 | B19: Kings Point PSA Closing Month End | C19: 2021-05-30

Sheet B-1 Revenue Requirement
A1: =Index!A1 -> The Empire District Electric Company
A2: =Index!A2 -> Test Year Ending September 30, 2020
A3: =Index!A3 -> ER-2021-0312
A4: =CONCATENATE(Index!C13,Index!F13) -> Schedule B-1 Revenue Requirement
G8: Total | I8: Total
A9: Line | G9: Company | I9: Missouri
A10: No. | C10: Description | E10: Reference | G10: Wind Project | I10: Wind Project
C11: (a) | E11: (b) | G11: (c) | I11: (d)
C13: Rate Base
A14: =A13+1 -> 1 | C14: Rate Base | E14: Schedule B-2 | G14: ='B-2 Rate Base Summary'!G23 -> 584533329.7 | I14: ='B-2 Rate Base Summary'!$K$23 -> 525311182.2
A15: =A14+1 -> 2 | C15: Rate of Return Requested | E15: Schedule E-1 | G15: ='E-1 WACC'!$O$20 -> 0.07034298038 | I15: ='E-1 WACC'!$O$20 -> 0.07034298038
A16: =A15+1 -> 3 | C16: Return on Rate Base | E16: Line 1 x Line 2 | G16: =G14*G15 -> 41117816.54 | I16: =I14*I15 -> 36951954.18
C18: Operating Expenses
A19: =A16+1 -> 4 | C19: Non-FAC Operating Expenses | E19: Schedule F-1 | G19: =-'F-1 Empire Op Inc'!I40 -> 40078507.38 | I19: =-'F-1 Empire Op Inc'!M40 -> 35286600.86 | K19: Proof
A20: =A19+1 -> 5 | C20: Income Taxes | G20: 0 | I20: 0 | K20: RR | L20: =I37 -> 80861404.58
A21: =A20+1 -> 6 | C21: Operating Income (Loss) After Taxes | E21: Line 4 - Line 5 | G21: =G19-G20 -> 40078507.38 | I21: =I19+I20 -> 35286600.86 | K21: Debt Return | L21: =I36 -> 9405284.563
K22: Equity Return | L22: =I35 -> 36169519.15
C23: Cost of Capital | K23: Expenses | L23: =I34 -> 35286600.86
A24: =A21+1 -> 7 | C24: Rate Base | E24: Line 1 | G24: =G14 -> 584533329.7 | I24: =I14 -> 525311182.2
A25: =A24+1 -> 8 | C25: Weighted Cost of Debt | E25: Schedule E-1 | G25: ='E-1 WACC'!$O$14 -> 0.01790421541 | I25: ='E-1 WACC'!$O$14 -> 0.01790421541
A26: =A25+1 -> 9 | C26: Interest Deduction | E26: Line 7 x Line 8 | G26: =G14*G25 -> 10465610.65 | I26: =I14*I25 -> 9405284.563 | K26: Net Income | L26: =L20-L21-L23 -> 36169519.15
K27: Taxes on Net Inc | L27: =I31-I29 -> 8622849.535
A28: =A26+1 -> 10 | C28: Weighted Cost of Equity | E28: Schedule E-1 | G28: ='E-1 WACC'!$O$18 -> 0.05243876497 | I28: ='E-1 WACC'!$O$18 -> 0.05243876497 | K28: Equity Return | L28: =L26-L27 -> 27546669.62
A29: =A28+1 -> 11 | C29: Equity Return | E29: Line 7 x Line 10 | G29: =G24*G28 -> 30652205.89 | I29: =I24*I28 -> 27546669.62 | K29: Check to model | L29: =L28-I29 -> 0
A30: =A29+1 -> 12 | C30: GRCF | E30: 2021 Rev. Req. Model | G30: 1.313026934 | I30: 1.313026934
A31: =A30+1 -> 13 | C31: Total Equity Return | E31: Line 11 x Line 12 | G31: =G29*G30 -> 40247171.93 | I31: =I29*I30 -> 36169519.15
C33: Project Revenue Requirement
A34: =A31+1 -> 14 | C34: Operating Expense | E34: Schedule F-1 | G34: =G21 -> 40078507.38 | I34: =I21 -> 35286600.86
A35: =A34+1 -> 15 | C35: Total Equity Return | E35: Line 13 | G35: =G31 -> 40247171.93 | I35: =I31 -> 36169519.15
A36: =A35+1 -> 16 | C36: Total Debt Return | E36: Line 9 | G36: =G26 -> 10465610.65 | I36: =I26 -> 9405284.563
A37: =A36+1 -> 17 | C37: Project Revenue Requirement | E37: Sum: Lines 14 - 16 | G37: =G35+G36+G34 -> 90791289.96 | I37: =I35+I36+I34 -> 80861404.58
C39: Reductions to Rates
A40: =A37+1 -> 18 | C40: EDE FAC Operating Income | E40: Schedule F-1 | G40: ='F-1 Empire Op Inc'!I24 -> 56369714.03 | I40: ='F-1 Empire Op Inc'!M24 -> 49760833.91
A41: =A40+1 -> 19 | C41: Wind Liability Amortization | E41: Schedule F-8 | G41: 0 | I41: ='F-8 Wind Liab Amort.'!S16 -> 4203532.451
A42: =A41+1 -> 20 | C42: Net Impact to Rates | G42: =G37-SUM(G40:G41) -> 34421575.93 | I42: =I37-SUM(I40:I41) -> 26897038.22
A44: Source: | B44: See reference column (b).
A46: Purpose: | B46: Presents the components of the revenue requirement.

Sheet B-2 Rate Base Summary
A1: =Index!A1 -> The Empire District Electric Company
A2: =Index!A2 -> Test Year Ending September 30, 2020
A3: =Index!A3 -> ER-2021-0312
A4: =CONCATENATE(Index!C14,Index!F14) -> Schedule B-2 Rate Base Summary
G8: Total | I8: Missouri | K8: Total
A9: Line | G9: Company | I9: Allocation | K9: Missouri
A10: No. | C10: Description | E10: Reference | G10: Ending Balance | I10: Factor | K10: Ending Balance
C11: (a) | E11: (b) | G11: (c) | I11: (d) | K11: (e) = (c) x (d)
M12: Company Check | N12: Missouri Check | O12: Tie to
A13: 1 | C13: Plant in Service | E13: Schedule C-1 | G13: ='C-1 Plant in Service'!O28-G14 -> 613906154.6 | I13: Various | K13: ='C-1 Plant in Service'!Y28-K14 -> 540638095.2 | M13: =G13-SUM('C-1 Plant in Service'!O28-'C-1 Plant in Service'!O17) -> 0 | N13: =K13-('C-1 Plant in Service'!Y28-'C-1 Plant in Service'!Y17) -> 0 | O13: Sch. C-1
A14: =A13+1 -> 2 | C14: Asset Retirement Costs | E14: Schedule C-1 | G14: ='C-1 Plant in Service'!O17 -> 25919371.79 | I14: ='C-1 Plant in Service'!Q17 -> 0.8827583174 | K14: =G14*I14 -> 22880541.03 | M14: =G14-'C-1 Plant in Service'!O17 -> 0 | N14: =K14-'C-1 Plant in Service'!Y17 -> 0 | O14: Sch. C-1
A15: =A14+1 -> 3 | C15: Accumulated Depreciation | E15: Schedule D-1 | G15: =-'D-1 Accumulated Depreciation'!AE24 -> -3249619.673 | I15: Various | K15: =-'D-1 Accumulated Depreciation'!AC24 -> -2868464.938 | M15: =-'D-1 Accumulated Depreciation'!AE24-'B-2 Rate Base Summary'!G15 -> 0 | N15: =-K15-'D-1 Accumulated Depreciation'!AC24 -> 0 | O15: Sch. D-1
A16: =+A15+1 -> 4 | C16: Net Plant in Service | G16: =SUM(G13:G15) -> 636575906.7 | K16: =SUM(K13:K15) -> 560650171.3
A18: =A16+1 -> 5 | C18: Additions/Deductions
A19: =A18+1 -> 6 | C19: Asset Retirement Obligations | E19: -(Line 3) | G19: ='B-5 Wind AROs'!O14 -> -26727540.49 | I19: ='C-1 Plant in Service'!Q17 -> 0.8827583174 | K19: =G19*I19 -> -23593958.67 | M19: =G19-'B-5 Wind AROs'!O14 -> 0 | N19: =K19-'B-5 Wind AROs'!Y14 -> 0 | O19: Sch. B-5
A20: =A19+1 -> 7 | C20: Accumulated Deferred Income Taxes | E20: Schedule B-3 | G20: ='B-3 ADIT'!I34 -> -3824071.484 | I20: ='B-3 ADIT'!K13 -> 0.8728826295 | K20: =G20*I20 -> -3337965.573 | M20: =G20-'B-3 ADIT'!I34 -> 0 | N20: =K20-'B-3 ADIT'!M34 -> 0 | O20: Sch. B-3
A21: =A20+1 -> 8 | C21: Reserved Wind Revenues - PISA | E21: Schedule B-4 | G21: =-'B-4 Wind Rev'!I30 -> -21490965.01 | I21: Various | K21: =-'B-4 Wind Rev'!U30 -> -8407064.902 | M21: =-G21-'B-4 Wind Rev'!I30 -> 0 | N21: =-K21-'B-4 Wind Rev'!U30 -> 0 | O21: Sch. B-4
A22: =A21+1 -> 9
A23: =A22+1 -> 10 | C23: Total Rate Base: | G23: =SUM(G16:G21) -> 584533329.7 | K23: =SUM(K16:K21) -> 525311182.2
A26: Source: | B26: See reference column (b).
A28: Purpose: | B28: Presents the applicable components of the proposed rate base for the Total Company and Missouri Jurisdiction.

Sheet B-3 ADIT
A1: =Index!A1 -> The Empire District Electric Company
A2: =Index!A2 -> Test Year Ending September 30, 2020
A3: =Index!A3 -> ER-2021-0312
A4: =CONCATENATE(Index!C15," ",Index!F15) -> Schedule B-3 Accumulated Deferred Income Taxes
I7: Total Company | K7: Missouri | M7: Total Missouri
A8: Line | E8: GL | I8: ADIT | K8: Allocation | M8: ADIT
A9: No. | C9: FERC | E9: Account | G9: Description | I9: Endning Balance | K9: Factor | M9: Ending Balance
C10: (a) | E10: (b) | G10: (c) | I10: (d) | K10: (e) | M10: (f) = (d) x (e)
A12: DEFERRED TAX LIABILITIES
A13: 1 | C13: 282 | E13: 282100 | G13: Accum Def Fed Inc Tx-Ld Elect | I13: -3824071.484 | K13: 0.8728826295 | M13: =I13*K13 -> -3337965.573
A14: =+A13+1 -> 2 | C14: 282 | E14: 282120 | G14: Accum Def Fed Inc Tx-Ld Ks Jur | I14: 0 | K14: 0 | M14: 0
A15: 3 | C15: 282 | E15: 282130 | G15: Acc Def Fed Inc Tx-LD NonUt DR | I15: 0 | K15: 0 | M15: 0
A16: 4 | C16: 282 | E16: 282135 | G16: Acc Def Fed Inc Tx-LD NonUT CR | I16: 0 | K16: 0 | M16: 0
A17: 5 | C17: 282 | E17: 282140 | G17: Accum Def Fed Inc Tx-Ld Ok Jur | I17: 0 | K17: 0 | M17: 0
A18: 6 | C18: 282 | E18: 282150 | G18: Accm Def Fed Inc Tx-Ld Ferc Jr | I18: 0 | K18: 0 | M18: 0
A19: 7 | C19: 282 | E19: 282200 | G19: Accumul Def Inc Tx-Ld Water | I19: 0 | K19: 0 | M19: 0
A20: 8 | C20: 283 | E20: 283100 | G20: Accm Def Fed Inc Tx-2Nd 5Yr Mn | I20: 0 | K20: 0.8605940637 | M20: 0
A21: 9 | C21: 283 | E21: 283103 | G21: Acc Def Tax-Repair Allowance | I21: 0 | K21: 0.8605940637 | M21: 0
A22: 10 | C22: 283 | E22: 283116 | G22: Def Tax Liab-Iatan Def Charges | I22: 0 | K22: 1 | M22: 0
A23: 11 | C23: 283 | E23: 283123 | G23: Def Inc Tax - Hedge Trans Loss | I23: 0 | K23: 0.8605940637 | M23: 0
A24: 12 | C24: 283 | E24: 283139 | G24: Deferred Tax Liab Fuel Costs | I24: 0 | K24: 0.8605940637 | M24: 0
A25: 13 | C25: 283 | E25: 283366 | G25: Def Tx-ITC Tx Basis Red-Iatan | I25: 0 | K25: 0 | M25: 0
A26: 14 | C26: 283 | E26: 283400 | G26: Accm Def Fed Inc Tx-Lic Softwr | I26: 0 | K26: 0.8605940637 | M26: 0
A27: 15 | C27: 283 | E27: 283900 | G27: Acc Def Tx-Loss Reacq Debt | I27: 0 | K27: 0.8605940637 | M27: 0
A28: 16 | C28: 283 | E28: 283914 | G28: Def Inc Tax - FAS158 | I28: 0 | K28: 0 | M28: 0
A29: 17 | C29: 283 | E29: 283915 | G29: Def Inc Tax-Deftx Liab Fas 109 | I29: 0 | K29: 0 | M29: 0
A30: 18 | C30: 283 | E30: 283917 | G30: Def Tx Liab-Equity AFUDC | I30: 0 | K30: 0 | M30: 0
A31: 19 | C31: 283 | E31: 283921 | G31: Def Inc Tx Ice Storm Exp | I31: 0 | K31: 0.8605940637 | M31: 0
A32: =A13+1 -> 2 | G32: Total Deferred Tax Liabilities: | I32: =SUM(I13:I31) -> -3824071.484 | M32: =SUM(M13:M31) -> -3337965.573
A34: =A32+1 -> 3 | G34: Total Accumulated Deferred Income Taxes: | I34: =I32 -> -3824071.484 | M34: =M32 -> -3337965.573
A37: Source: | B37: ADIT Schedule obtained from Yousuf Ibrahim, Director of International Tax.
A39: Purpose: | B39: To present the accumulated deferred income tax balance expected at the end of the true-up period, June 30, 2021.

Sheet B-4 Wind Rev
A1: =Index!A1 -> The Empire District Electric Company
A2: =Index!A2 -> Test Year Ending September 30, 2020
A3: =Index!A3 -> ER-2021-0312
A4: =CONCATENATE(Index!C16," ",Index!F16) -> Schedule B-4 Wind Revenues Liability
E8: Total Company | G8: Total Company | I8: Total Company | K8: Composite | M8: Total Company | O8: Missouri | Q8: Total Missouri | S8: Liability | U8: Total Missouri
A9: Line | E9: Projected | G9: Projected | I9: Projected | K9: Ownership | M9: Projected | O9: Allocation | Q9: Projected | S9: Allocation | U9: Projected
A10: No. | C10: Month | E10: Wind Revenues | G10: Monthly Expenses | I10: Net Revenues | K10: Factor | M10: Net Revenues | O10: Factor | Q10: Net Revenues | S10: Factor | U10: Liability Balance
C11: (a) | E11: (b) | G11: (c) | I11: (d) = (b) - (c) | K11: (e) | M11: (f) = (d) x (e) | O11: (e) | Q11: (f) = (d) x (e) | S11: (g) | U11: (h) = (f) x (g)
A13: Wind Revenues Liability
A14: 1 | C14: 2021-02-01 | E14: 6603915.61 | F14: (1) | G14: 515266 | I14: =E14-G14 -> 6088649.61 | K14: =AVERAGE(Input!$C$11:$C$13) -> 0.5213480329 | M14: =I14*K14 -> 3174305.497 | O14: 0.8827583174 | Q14: =M14*O14 -> 2802144.58 | S14: 0.85 | U14: =Q14*S14 -> 2381822.893
A15: =A14+1 -> 2 | C15: 2021-03-01 | E15: 1316397.32 | F15: (1) | G15: 1858999.22 | I15: -542601.9 | K15: =AVERAGE(Input!$C$11:$C$13) -> 0.5213480329 | M15: =I15*K15 -> -282884.4332 | O15: 0.8827583174 | Q15: =M15*O15 -> -249718.5863 | S15: =S14 -> 0.85 | U15: -212260.7983
A16: =A15+1 -> 3 | C16: 2021-04-01 | E16: 4068708.496 | G16: =-'F-1 Empire Op Inc'!$I$40/12 -> 3339875.615 | I16: 728832.8809 | K16: =AVERAGE(Input!$C$11:$C$13) -> 0.5213480329 | M16: 379975.5888 | O16: 0.8827583174 | Q16: 335426.6114 | S16: 0.85 | U16: 285112.6197
A17: =A16+1 -> 4 | C17: 2021-05-01 | E17: 4053092.163 | G17: =-'F-1 Empire Op Inc'!$I$40/12 -> 3339875.615 | I17: 713216.5479 | K17: =AVERAGE(Input!$C$11:$C$13) -> 0.5213480329 | M17: 371834.0443 | O17: 0.8827583174 | Q17: 328239.5953 | S17: 0.85 | U17: 279003.656
A18: =A17+1 -> 5 | C18: 2021-06-01 | E18: 3919242.126 | G18: =-'F-1 Empire Op Inc'!$I$40/12 -> 3339875.615 | I18: 579366.5113 | K18: =AVERAGE(Input!$C$11:$C$13) -> 0.5213480329 | M18: 302051.591 | O18: 0.8827583174 | Q18: 266638.5542 | S18: 0.85 | U18: 226642.7711
A19: =A18+1 -> 6 | C19: 2021-07-01 | E19: 3921966.125 | G19: =-'F-1 Empire Op Inc'!$I$40/12 -> 3339875.615 | I19: 582090.5103 | K19: =AVERAGE(Input!$C$11:$C$13) -> 0.5213480329 | M19: 303471.7425 | O19: 0.8827583174 | Q19: 267892.2048 | S19: 0.85 | U19: 227708.3741
A20: 7 | C20: 2021-08-01 | E20: 4072770.02 | G20: =-'F-1 Empire Op Inc'!$I$40/12 -> 3339875.615 | I20: 732894.4043 | K20: =AVERAGE(Input!$C$11:$C$13) -> 0.5213480329 | M20: 382093.056 | O20: 0.8827583174 | Q20: 337295.8232 | S20: 0.85 | U20: 286701.4498
A21: 8 | C21: 2021-09-01 | E21: 4203110.229 | G21: =-'F-1 Empire Op Inc'!$I$40/12 -> 3339875.615 | I21: 863234.6143 | K21: =AVERAGE(Input!$C$11:$C$13) -> 0.5213480329 | M21: 450045.6681 | O21: 0.8827583174 | Q21: 397281.5567 | S21: 0.85 | U21: 337689.3232
A22: 9 | C22: 2021-10-01 | E22: 4970307.739 | G22: =-'F-1 Empire Op Inc'!$I$40/12 -> 3339875.615 | I22: 1630432.124 | K22: =AVERAGE(Input!$C$11:$C$13) -> 0.5213480329 | M22: 850022.5807 | O22: 0.8827583174 | Q22: 750364.5031 | S22: 0.85 | U22: 637809.8276
A23: 10 | C23: 2021-11-01 | E23: 5326852.783 | G23: =-'F-1 Empire Op Inc'!$I$40/12 -> 3339875.615 | I23: 1986977.168 | K23: =AVERAGE(Input!$C$11:$C$13) -> 0.5213480329 | M23: 1035906.638 | O23: 0.8827583174 | Q23: 914455.2007 | S23: 0.85 | U23: 777286.9206
A24: 11 | C24: 2021-12-01 | E24: 5251128.052 | G24: =-'F-1 Empire Op Inc'!$I$40/12 -> 3339875.615 | I24: 1911252.437 | K24: =AVERAGE(Input!$C$11:$C$13) -> 0.5213480329 | M24: 996427.6982 | O24: 0.8827583174 | Q24: 879604.8383 | S24: 0.85 | U24: 747664.1125
A25: 12 | C25: 2022-01-01 | E25: 5473647.583 | G25: =-'F-1 Empire Op Inc'!$I$40/12 -> 3339875.615 | I25: 2133771.968 | K25: =AVERAGE(Input!$C$11:$C$13) -> 0.5213480329 | M25: 1112437.818 | O25: 0.8827583174 | Q25: 982013.7365 | S25: 0.85 | U25: 834711.6761
A26: 13 | C26: 2022-02-01 | E26: 4529140.259 | G26: =-'F-1 Empire Op Inc'!$I$40/12 -> 3339875.615 | I26: 1189264.644 | K26: =AVERAGE(Input!$C$11:$C$13) -> 0.5213480329 | M26: 620020.7826 | O26: 0.8827583174 | Q26: 547328.5028 | S26: 0.85 | U26: 465229.2273
A27: 14 | C27: 2022-03-01 | E27: 5504626.221 | G27: =-'F-1 Empire Op Inc'!$I$40/12 -> 3339875.615 | I27: 2164750.606 | K27: =AVERAGE(Input!$C$11:$C$13) -> 0.5213480329 | M27: 1128588.47 | O27: 0.8827583174 | Q27: 996270.8588 | S27: 0.85 | U27: 846830.23
A28: 15 | C28: 2022-04-01 | E28: 4068708.496 | G28: =-'F-1 Empire Op Inc'!$I$40/12 -> 3339875.615 | I28: 728832.8809 | K28: =AVERAGE(Input!$C$11:$C$13) -> 0.5213480329 | M28: 379975.5888 | O28: 0.8827583174 | Q28: 335426.6114 | S28: 0.85 | U28: 285112.6197
A30: =A28+1 -> 16 | E30: =SUM(E14:E28) -> 67283613.22 | G30: =SUM(G14:G28) -> 45792648.22 | I30: =SUM(I14:I28) -> 21490965.01 | M30: =SUM(M14:M28) -> 11204272.33 | Q30: =SUM(Q14:Q28) -> 9890664.591 | U30: =SUM(U14:U28) -> 8407064.902
T33: Check to B-2: | U33: =U30+'B-2 Rate Base Summary'!K21 -> 0
A34: Footnotes:
A35: (1) - Actual revenues and expenses through March 2021.
A37: Source: | B37: Wind Revenues provided by David Busse, Fuel Procurement.
A39: Purpose: | B39: To calculate wind revenues liability offset to rate base.

Sheet B-5 Wind AROs
A1: =Index!A1 -> The Empire District Electric Company
A2: =Index!A2 -> Test Year Ending September 30, 2020
A3: =Index!A3 -> ER-2021-0312
A4: =CONCATENATE(Index!C17," ",Index!F17) -> Schedule B-5 Wind Asset Retirement Obligations
I7: Neosho Ridge | K7: North Fork Ridge | M7: Kings Point | O7: Total Company | Q7: Missouri | S7: Neosho Ridge | U7: North Fork Ridge | W7: Kings Point | Y7: Total | AA7: Other Jurisdiction
A8: Line | I8: Total Company | K8: Total Company | M8: Total Company | O8: Wind Project | Q8: Allocation | S8: Missouri | U8: Missouri | W8: Missouri | Y8: Missouri | AA8: Not At Issue
A9: No. | C9: FERC | E9: Description | G9: Reference | I9: Ending Balance | K9: Ending Balance | M9: Ending Balance | O9: Ending Balance | Q9: Factor | S9: Balance | U9: Balance | W9: Balance | Y9: Ending Balance | AA9: Balance
C10: (a) | E10: (b) | G10: (c) | I10: (d) | K10: (e) | M10: (f) | O10: (g) | Q10: (h) | S10: (i)=(d)*(h) | U10: (j)=(e)*(h) | W10: (k) = (f) x (h) | Y10: (l) = (f) + (g) | AA10: (m)=(g) - (l)
A12: ASSET RETIREMENT OBLIGATIONS
A13: 1 | E13: Asset Retirement Obligations | G13: (1) | I13: -12846370.56 | K13: -6809494.78 | M13: -7071675.15 | O13: =I13+K13+M13 -> -26727540.49 | Q13: 0.8827583174 | S13: =I13*Q13 -> -11340240.46 | U13: =K13*Q13 -> -6011138.154 | W13: =M13*Q13 -> -6242580.057 | Y13: =S13+U13+W13 -> -23593958.67 | AA13: =O13-Y13 -> -3133581.819
E14: Total Asset Retirement Costs: | I14: =I13 -> -12846370.56 | K14: =K13 -> -6809494.78 | M14: =M13 -> -7071675.15 | O14: =O13 -> -26727540.49 | S14: =S13 -> -11340240.46 | U14: =U13 -> -6011138.154 | W14: =W13 -> -6242580.057 | Y14: =Y13 -> -23593958.67 | AA14: =AA13 -> -3133581.819
A17: Source: | B17: Wind ARO balances provided by Joshua Claussen, Accounting.
A19: Purpose: | B19: To record the balance of the Asset Retirement Obligations for the wind projects.

Sheet C-1 Plant in Service
A1: =Index!A1 -> The Empire District Electric Company
A2: =Index!A2 -> Test Year Ending September 30, 2020
A3: =Index!A3 -> ER-2021-0312
A4: =CONCATENATE(Index!C20,Index!F20) -> Schedule C-1 Plant in Service
I7: Neosho Ridge | K7: North Fork Ridge | M7: Kings Point | O7: Total Company | Q7: Missouri | S7: Neosho Ridge | U7: North Fork Ridge | W7: Kings Point | Y7: Total | AA7: Other Jurisdiction
A8: Line | I8: Total Company | K8: Total Company | M8: Total Company | O8: Wind Project | Q8: Allocation | S8: Missouri | U8: Missouri | W8: issouri | Y8: Missouri | AA8: Not At Issue
A9: No. | C9: FERC | E9: Description | G9: Reference | I9: Project Cost | K9: Project Cost | M9: Project Cost | O9: Ending Balance | Q9: Factor (5) | S9: Ending Balance | U9: Ending Balance | W9: Ending Balance | Y9: Ending Balance | AA9: Balance
C10: (a) | E10: (b) | G10: (c) | I10: (d) | K10: (e) | M10: (f) | O10: (g) | Q10: (h) | S10: (i)=(d)*(h) | U10: (j)=(e)*(h) | W10: (k) = (f) x (h) | Y10: (l) = (f) + (g) | AA10: (m)=(g) - (l)
A12: PRODUCTION PLANT
A13: 1 | C13: 341-346 | E13: Other Production - Wind | G13: (1) | I13: 289358316 | K13: 137097573.8 | M13: 155635397.9 | O13: =I13+K13+M13 -> 582091287.7 | Q13: 0.8827583174 | S13: =I13*Q13 -> 255433460.2 | U13: =K13*Q13 -> 121024023.5 | W13: =M13*Q13 -> 137388442 | Y13: =S13+U13+W13 -> 513845925.7 | AA13: =O13-Y13 -> 68245362
A14: =A13+2 -> 3 | E14: Total Production Plant: | I14: =SUM(I13:I13) -> 289358316 | K14: =SUM(K13:K13) -> 137097573.8 | M14: =SUM(M13:M13) -> 155635397.9 | O14: =SUM(O13:O13) -> 582091287.7 | S14: =SUM(S13:S13) -> 255433460.2 | U14: =SUM(U13:U13) -> 121024023.5 | W14: =SUM(W13:W13) -> 137388442 | Y14: =SUM(Y13:Y13) -> 513845925.7 | AA14: =SUM(AA13:AA13) -> 68245362
A16: ASSET RETIREMENT COSTS
A17: =A14+1 -> 4 | E17: Asset Retirement Costs | G17: (2) | I17: 12445234.37 | K17: 6570300.81 | M17: 6903836.61 | O17: =I17+K17+M17 -> 25919371.79 | Q17: 0.8827583174 | S17: =I17*Q17 -> 10986134.15 | U17: =K17*Q17 -> 5799987.688 | W17: =M17*Q17 -> 6094419.189 | Y17: =S17+U17+W17 -> 22880541.03 | AA17: =O17-Y17 -> 3038830.761
E18: Total Asset Retirement Costs: | I18: =I17 -> 12445234.37 | K18: =K17 -> 6570300.81 | M18: =M17 -> 6903836.61 | O18: =O17 -> 25919371.79 | S18: =S17 -> 10986134.15 | U18: =U17 -> 5799987.688 | W18: =W17 -> 6094419.189 | Y18: =Y17 -> 22880541.03 | AA18: =AA17 -> 3038830.761
A20: TRANSMISSION PLANT
A21: =A17+1 -> 5 | C21: 351-356 | E21: Generation Tie Lines | G21: (3) | I21: 16499999.56 | K21: 7911194.03 | M21: 2458508.95 | O21: =I21+K21+M21 -> 26869702.54 | Q21: 0.8364670741 | S21: =I21*Q21 -> 13801706.35 | U21: =K21*Q21 -> 6617453.323 | W21: =M21*Q21 -> 2056461.788 | Y21: =S21+U21+W21 -> 22475621.46 | AA21: =O21-Y21 -> 4394081.076
E22: Total Transmission Plant: | I22: =I21 -> 16499999.56 | K22: =K21 -> 7911194.03 | M22: =M21 -> 2458508.95 | O22: =O21 -> 26869702.54 | S22: =S21 -> 13801706.35 | U22: =U21 -> 6617453.323 | W22: =W21 -> 2056461.788 | Y22: =Y21 -> 22475621.46 | AA22: =AA21 -> 4394081.076
A24: GENERAL PLANT
A25: =A21+1 -> 6 | E25: O&M Building | G25: (4) | I25: 2919444.444 | K25: 663547 | M25: 1362172.91 | O25: =I25+K25+M25 -> 4945164.354 | Q25: 0.8728826295 | S25: =I25*Q25 -> 2548332.343 | U25: =K25*Q25 -> 579198.6502 | W25: =M25*Q25 -> 1189017.072 | Y25: =S25+U25+W25 -> 4316548.065 | AA25: =O25-Y25 -> 628616.2894
A26: =A25+1 -> 7 | E26: Total General Plant: | I26: =SUM(I25:I25) -> 2919444.444 | K26: =SUM(K25:K25) -> 663547 | M26: =SUM(M25:M25) -> 1362172.91 | O26: =SUM(O25:O25) -> 4945164.354 | S26: =SUM(S25:S25) -> 2548332.343 | U26: =SUM(U25:U25) -> 579198.6502 | W26: =SUM(W25:W25) -> 1189017.072 | Y26: =SUM(Y25:Y25) -> 4316548.065 | AA26: =SUM(AA25:AA25) -> 628616.2894
A28: =+A26+1 -> 8 | E28: Total Electric Utility Plant: | I28: =I14+I18+I22+I26 -> 321222994.4 | K28: =K14+K18+K22+K26 -> 152242615.6 | M28: =M14+M18+M22+M26 -> 166359916.4 | O28: =O14+O18+O22+O26 -> 639825526.4 | S28: =S14+S18+S22+S26 -> 282769633 | U28: =U14+U18+U22+U26 -> 134020663.2 | W28: =W14+W18+W22+W26 -> 146728340 | Y28: =Y14+Y18+Y22+Y26 -> 563518636.2 | AA28: =AA14+AA18+AA22+AA26 -> 76306890.13
A32: Footnote:
A33: (1) | B33: Purchase and Sale Agreements for the wind projects.
A34: (2) | B34: Estimated decomissioning costs for the wind projects.
A35: (3) | B35: Generation Tie Line included in the PSA but separated for Missouri allocations.
A36: (4) | B36: O&M building included in the PSA but separated for Missouri allocations.
A37: (5) | B37: Missouri pro forma plant allocations.
A39: Source: | B39: See footnotes.
A41: Purpose: | B41: To present the items and amounts of plant investment by the classification appropriate to the utility's industry by primary account.

Sheet D-1 Accumulated Depreciation
A1: =Index!A1 -> The Empire District Electric Company
A2: =Index!A2 -> Test Year Ending September 30, 2020
A3: =Index!A3 -> ER-2021-0312
A4: =CONCATENATE(Index!C23,Index!F23) -> Schedule D-1 Accumulated Depreciation/Amortization
I7: Total | K7: Neosho Ridge | M7: North Fork Ridge | O7: Kings Point | Q7: Months | S7: Months | U7: Months | W7: Neosho Ridge | Y7: North Fork Ridge | AA7: Kings Point | AC7: Total Missouri | AE7: Total Company
A8: Line | I8: Company | K8: Missosuri | M8: Missouri | O8: Missouri | Q8: Acc. Depr. | S8: Acc. Depr. | U8: Acc. Depr.
A9: No. | C9: FERC | E9: Description | G9: Reference | I9: Annual Depreciaton Expense | K9: Annual Depreciaton Expense | M9: Annual Depreciaton Expense | O9: Annual Depreciaton Expense | Q9: Neosho Ridge | S9: North Fork Ridge | U9: Kings Point | W9: Accumulated Depreciation | Y9: Accumulated Depreciation | AA9: Accumulated Depreciation | AC9: Accumulated Depreciation | AE9: Accumulated Depreciation
C10: (a) | E10: (b) | G10: (c) | I10: (d) | K10: (e) | M10: (f) | O10: (g) | Q10: (1) | S10: (1) | U10: (1) | W10: (j) = (e) * (h) | Y10: (k) = (f) * (h) | AA10: (l) = (g) * (h) | AC10: (m) = (j) + (k) + (l) | AE10: (i) = (d) * (h)
A12: PRODUCTION PLANT ACCUMULATED DEPRECIATION | Q12: 2021-06-30 | S12: 2021-06-30 | U12: 2021-06-30
A13: 1 | C13: 341-346 | E13: Other Production-Wind | G13: Schedule G-1 | I13: ='G-1 Depreciation Expense'!AA14+'G-1 Depreciation Expense'!AC14 -> 19383639.88 | K13: ='G-1 Depreciation Expense'!U14 -> 8505934.224 | M13: ='G-1 Depreciation Expense'!W14 -> 4030099.984 | O13: ='G-1 Depreciation Expense'!Y14 -> 4575035.118 | Q13: =ROUND((Q12-Input!$C$17)/30,0) -> 1 | S13: =ROUND((S12-Input!C18)/30,0) -> 5 | U13: =ROUND((U12-Input!$C$19)/30,0) -> 1 | W13: =(K13/12)*Q13 -> 708827.852 | Y13: =(M13/12)*S13 -> 1679208.327 | AA13: =(O13/12)*U13 -> 381252.9265 | AC13: =+W13+Y13+AA13 -> 2769289.105 | AE13: ='D-1 Accumulated Depreciation'!AC13/'C-1 Plant in Service'!Q13 -> 3137086.392
A14: =A13+1 -> 2 | E14: Total Production Plant: | I14: =I13 -> 19383639.88 | K14: =K13 -> 8505934.224 | M14: =M13 -> 4030099.984 | O14: =O13 -> 4575035.118 | W14: =W13 -> 708827.852 | Y14: =Y13 -> 1679208.327 | AA14: =AA13 -> 381252.9265 | AC14: =AC13 -> 2769289.105 | AE14: =AE13 -> 3137086.392
A16: TRANSMISSION PLANT ACCUMULATED DEPRECIATION
A17: =A14+1 -> 3 | C17: 351-356 | E17: Generation Tie Line | G17: Schedule G-1 | I17: ='G-1 Depreciation Expense'!AA18+'G-1 Depreciation Expense'!AC18 -> 557929.8671 | K17: ='G-1 Depreciation Expense'!U18 -> 286582.413 | M17: ='G-1 Depreciation Expense'!W18 -> 137406.6143 | O17: ='G-1 Depreciation Expense'!Y18 -> 42700.93613 | Q17: =Q13 -> 1 | S17: =S13 -> 5 | U17: =U13 -> 1 | W17: =(K17/12)*Q17 -> 23881.86775 | Y17: =(M17/12)*S17 -> 57252.75595 | AA17: =(O17/12)*U17 -> 3558.411344 | AC17: =+W17+Y17+AA17 -> 84693.03505 | AE17: ='D-1 Accumulated Depreciation'!AC17/'C-1 Plant in Service'!Q17 -> 95941.36173
E18: Total Transmission Plant: | I18: =I17 -> 557929.8671 | K18: =K17 -> 286582.413 | M18: =M17 -> 137406.6143 | O18: =O17 -> 42700.93613 | W18: =W17 -> 23881.86775 | Y18: =Y17 -> 57252.75595 | AA18: =AA17 -> 3558.411344 | AC18: =AC17 -> 84693.03505 | AE18: =AE17 -> 95941.36173
A20: GENERAL PLANT ACCUMULATED DEPRECIATION
A21: =A17+1 -> 4 | C21: 341 | E21: O&M Building | G21: Schedule G-1 | I21: ='G-1 Depreciation Expense'!AA23+'G-1 Depreciation Expense'!AC23 -> 129563.3061 | K21: ='G-1 Depreciation Expense'!U22 -> 66766.3074 | M21: ='G-1 Depreciation Expense'!W22 -> 15175.00463 | O21: ='G-1 Depreciation Expense'!Y22 -> 31152.24727 | Q21: =Q13 -> 1 | S21: =S13 -> 5 | U21: =U13 -> 1 | W21: =(K21/12)*Q21 -> 5563.85895 | Y21: =(M21/12)*S21 -> 6322.918598 | AA21: =(O21/12)*U21 -> 2596.020606 | AC21: =W21+Y21+AA21 -> 14482.79815 | AE21: ='D-1 Accumulated Depreciation'!AC21/'C-1 Plant in Service'!Q25 -> 16591.91931
A22: =A21+1 -> 5 | E22: Total General Plant: | I22: =I21 -> 129563.3061 | K22: =K21 -> 66766.3074 | M22: =M21 -> 15175.00463 | O22: =O21 -> 31152.24727 | W22: =SUM(W21:W21) -> 5563.85895 | Y22: =Y21 -> 6322.918598 | AA22: =SUM(AA21:AA21) -> 2596.020606 | AC22: =SUM(AC21:AC21) -> 14482.79815 | AE22: =SUM(AE21:AE21) -> 16591.91931
A24: =+A22+1 -> 6 | E24: Total Accumulated Depreciation/Amortization: | I24: =I14+I18+I22 -> 20071133.05 | K24: =K14+K18+K22 -> 8859282.944 | M24: =M14+M18+M22 -> 4182681.603 | O24: =O14+O18+O22 -> 4648888.301 | W24: =W14+W18+W22 -> 738273.5787 | Y24: =Y14+Y18+Y22 -> 1742784.001 | AA24: =AA14+AA18+AA22 -> 387407.3584 | AC24: =AC14+AC18+AC22 -> 2868464.938 | AE24: =AE14+AE18+AE22 -> 3249619.673
N26: MO Sum: | O26: =SUM(K24:O24) -> 17690852.85 | AB26: Check to B-2 | AC26: =AC24+'B-2 Rate Base Summary'!K15 -> 0
N27: Check to G-1: | O27: =O26-'G-1 Depreciation Expense'!AA25 -> 0
A29: Footnotes:
A30: (1) | B30: Based on closing date for each wind project.
A32: Source: | B32: See reference column (c).
A34: Purpose: | B34: To present the items and amounts of plant investment by the classification appropriate to the utility's industry by primary account for the test year.

Sheet E-1 WACC
A1: =Index!A1 -> The Empire District Electric Company
A2: =Index!A2 -> Test Year Ending September 30, 2020
A3: =Index!A3 -> ER-2021-0312
A4: =CONCATENATE(Index!C26,Index!F26) -> Schedule E-1 WACC - Weighted Average Cost of Capital
E8: Capital | I8: Adjusted
A9: Line | E9: Per Books | G9: Pro Forma | I9: Capital | K9: Capital | M9: Cost | O9: Rate of
A10: No. | C10: Description | E10: 2020-09-30 | G10: Adjustments | I10: 2021-06-30 | K10: Ratio | M10: Rate | O10: Return
C11: (a) | E11: (b) | G11: (c) | I11: (d) = (b) + (c) | K11: (e) | M11: (f) | O11: (g) = (e) x (f)
A13: WEIGHTED AVERAGE COST OF CAPITAL
A14: 1 | C14: Long Term Debt | E14: 735000000 | G14: 425000000 | I14: =E14+G14 -> 1160000000 | K14: =+I14/I20 -> 0.4756123503 | M14: ='E-2 WACD'!Q29 -> 0.03764455528 | O14: =K14*M14 -> 0.01790421541
A16: =+A14+1 -> 2 | C16: Trust Preferred Stock | E16: 0 | G16: 0 | I16: 0 | K16: 0 | M16: 0 | O16: =+K16*M16 -> 0
A18: =+A16+1 -> 3 | C18: Common Equity | E18: 1072982332 | G18: 205978724 | I18: =E18+G18 -> 1278961056 | K18: =+I18/I20 -> 0.5243876497 | M18: 0.1 | O18: =+K18*M18 -> 0.05243876497
A20: =+A18+1 -> 4 | C20: Total Capital | E20: =SUM(E14:E19) -> 1807982332 | G20: =SUM(G14:G19) -> 630978724 | I20: =SUM(I14:I19) -> 2438961056 | K20: =SUM(K14:K18) -> 1 | O20: =SUM(O14:O19) -> 0.07034298038
A23: Source: | B23: 2021 Revenue Requirement Model, Schedule 8.
A25: Purpose: | B25: Presents the components of the capital of the utility outstanding as of the end of the test year with any pro forma adjustments, as well as, the ratios of the various components to the total capital and the effective cost of each component under present and proposed rates.

Sheet E-2 WACD
A1: =Index!A1 -> The Empire District Electric Company
A2: =Index!A2 -> Test Year Ending September 30, 2020
A3: =Index!A3 -> ER-2021-0312
A4: =CONCATENATE(Index!C27," ",Index!F27) -> Schedule E-2 WACD - Weighted Average Cost of Debt
A7: Line | E7: GL | K7: Amount | M7: Pro Forma | O7: Interest | Q7: Annual
A8: No. | C8: FERC | E8: Account | G8: Description | I8: Reference | K8: Per Books | M8: Adjustments | O8: Rate | Q8: Costs
C9: (a) | E9: (b) | G9: (c) | I9: (d) | K9: (e) | M9: (e) | O9: (f) | Q9: (g)
A11: 1 | C11: 221 | E11: 221800 | G11: 6.82% Series due 6-1-2036 - EDG | I11: TB 09-2020 | K11: 62000000 | M11: 0 | O11: 0.067 | Q11: =SUM(K11:M11)*O11 -> 4154000
A12: =1+A11 -> 2 | C12: 224 | E12: 224102 | G12: 6.70% Sr. Notes, Series due 2033 | K12: 40000000 | M12: 0 | O12: 0.058 | Q12: 2320000
A13: 3 | C13: 224 | E13: 224103 | G13: 5.80% Sr. Notes, Series due 7-1-2035 | K13: 80000000 | M13: 0 | O13: 0.05875 | Q13: 4700000
A14: 4 | C14: 221 | E14: 221801 | G14: 5.875% Series, due 2037 | K14: 50000000 | M14: 0 | O14: 0.052 | Q14: 2600000
A15: 5 | C15: 221 | E15: 221803 | G15: 5.20% Series, due 9-1-2040 | K15: 88000000 | M15: 0 | O15: 0.0358 | Q15: 3150400
A16: 6 | C16: 221 | E16: 221804 | G16: 3.58% Series, due 4-2-2027 | K16: 30000000 | M16: 0 | O16: 0.0373 | Q16: 1119000
A17: 7 | C17: 221 | E17: 221805 | G17: 3.73% Series, due 5-30-33 | K17: 120000000 | M17: 0 | O17: 0.0432 | Q17: 5184000
A18: 8 | C18: 221 | E18: 221806 | G18: 4.32% Series, due 5-30-43 | K18: 60000000 | M18: 0 | O18: 0.0427 | Q18: 2562000
A19: 9 | C19: 221 | E19: 221807 | G19: 4.27%, Series, due 12-1-2044 | K19: 60000000 | M19: 0 | O19: 0.0359 | Q19: 2154000
A20: 10 | C20: 221 | E20: 221808 | G20: 3.59% FMB Series due 8-20-2030 | K20: 90000000 | M20: 0 | O20: 0.02079 | Q20: 1871100
A21: 11 | C21: 221 | E21: 223120 | G21: 2.08% Note Payable to LUC, due 6-1-2033 | K21: 55000000 | M21: 0 | N21: (1) | O21: 0.0682 | Q21: 3751000
A22: 12 | C22: XXX | E22: XXXXXX | G22: Wind farm debt - estimate | K22: 0 | M22: 425000000 | O22: 0.02079 | Q22: =SUM(K22:M22)*O22 -> 8835750
A24: =A22+1 -> 13 | G24: Premium, Discounts and Expense | Q24: -97730.36
A25: =A24+1 -> 14 | G25: Annual Amort Defer Fin Costs | Q25: 1364164.48
A27: =A25+1 -> 15 | G27: Total Long Term Debt | K27: =SUM(K11:K26) -> 735000000 | M27: =SUM(M11:M26) -> 425000000 | Q27: =SUM(Q11:Q26) -> 43667684.12
A29: =A27+1 -> 16 | G29: Annual Cost Rate: | I29: Schedule 8 | Q29: =+Q27/(K27+M27) -> 0.03764455528
A31: Source: | B31: 2021 Revenues Requirement Model, Schedule 9.
A33: Purpose: | B33: This workpaper represents all outstanding debts of the company and yearly interest expense to calculate the annual cost rate for the weighted average cost of capital.

Sheet F-1 Empire Op Inc
A1: =Index!A1 -> The Empire District Electric Company
A2: =Index!A2 -> Test Year Ending September 30, 2020
A3: =Index!A3 -> ER-2021-0312
A4: =CONCATENATE(Index!C30,Index!F30) -> Schedule F-1 Operating Income Statement of Empire
I7: Total | K7: Missouri | M7: Total
A8: Line | I8: Company | K8: Allocation | M8: Missouri
A9: No. | C9: Description | E9: Source Party | G9: Reference | I9: Wind Project | K9: Factor | M9: Wind Project
C10: (a) | E10: (b) | G10: (c) | I10: (d) | K10: (e) | M10: (f) = (d) x (e)
A12: 1 | C12: FAC Operating Income
A14: =A12+1 -> 2 | C14: Revenues | E14: Inflow from
A15: =A14+1 -> 3 | C15: Wind HoldCo FAC Operating Income | E15: HoldCo | G15: Schedule F-2 | I15: ='F-2 WindHoldCo Op Inc'!$I$25 -> 68849169.73 | K15: Various | M15: ='F-2 WindHoldCo Op Inc'!M25 -> 60777177.23
A16: =A15+1 -> 4 | C16: PAYGO Contributions | E16: TE Partner | G16: Schedule F-3 | I16: ='F-3 Op Inc Detail'!M19 -> 0 | K16: ='F-3 Op Inc Detail'!O18 -> 0.8827583174 | M16: =I16*K16 -> 0
A17: =A16+1 -> 5 | C17: Total FAC Revenues | I17: =SUM(I15:I16) -> 68849169.73 | M17: =SUM(M15:M16) -> 60777177.23
A19: =A17+1 -> 6 | C19: Expenses | E19: Outflow to
A20: =A19+1 -> 7 | C20: Hedge Net Settlement | E20: HoldCo | G20: Schedule F-2 | I20: ='F-2 WindHoldCo Op Inc'!I16 -> 12479455.7 | K20: ='F-3 Op Inc Detail'!O22 -> 0.8827583174 | M20: =I20*K20 -> 11016343.32
A21: =A20+1 -> 8 | C21: Tax Equity Distributions | E21: TE Partner | G21: Schedule F-3 | I21: ='F-3 Op Inc Detail'!M36 -> 0 | K21: ='F-3 Op Inc Detail'!O36 -> 0.8827583174 | M21: =I21*K21 -> 0
A22: =A21+1 -> 9 | C22: Total FAC Expenses | I22: =SUM(I20:I21) -> 12479455.7 | M22: =SUM(M20:M21) -> 11016343.32
A24: =A22+1 -> 10 | C24: FAC Operating Income | E24: Empire | I24: =I17-I22 -> 56369714.03 | M24: =M17-M22 -> 49760833.91
A26: =A24+1 -> 11 | C26: Non-FAC Operating Income
A28: =A26+1 -> 12 | C28: Revenues | E28: Inflow from
A29: =A28+1 -> 13 | C29: Wind HoldCo Non-FAC Operating Loss | E29: HoldCo | G29: Schedule F-2 | I29: ='F-2 WindHoldCo Op Inc'!$I$46 -> -21763280.55 | K29: Various | M29: ='F-2 WindHoldCo Op Inc'!M46 -> -19145788.84
A30: =A29+1 -> 14 | C30: Operations and Maintenance Agreement | E30: HoldCo | G30: Schedule F-2 | I30: ='F-2 WindHoldCo Op Inc'!I34 -> 2116261.034 | K30: ='F-3 Op Inc Detail'!O48 -> 0.8827583174 | M30: =I30*K30 -> 1868147.03
A31: =A30+1 -> 15 | C31: Asset Management and Services Agreement | E31: HoldCo | G31: Schedule F-2 | I31: ='F-2 WindHoldCo Op Inc'!I35 -> 290624.25 | K31: ='F-3 Op Inc Detail'!O53 -> 0.8827583174 | M31: =I31*K31 -> 256550.9739
A32: =A31+1 -> 16 | C32: Energy Management Services Agreement | E32: HoldCo | G32: Schedule F-2 | I32: ='F-2 WindHoldCo Op Inc'!I36 -> 213000 | K32: ='F-3 Op Inc Detail'!O58 -> 0.8827583174 | M32: =I32*K32 -> 188027.5216
A33: =A32+1 -> 17 | C33: Total Non-FAC Revenues | I33: =SUM(I29:I32) -> -19143395.27 | M33: =SUM(M29:M32) -> -16833063.31
A35: =A33+1 -> 18 | C35: Expenses | E35: Outflow to
A36: =A35+1 -> 19 | C36: Depreciation Expense | E36: EDE Acc. Depr. | G36: Schedule G-1 | I36: ='G-1 Depreciation Expense'!AA25+'G-1 Depreciation Expense'!AC25 -> 20071133.05 | K36: Various | M36: ='G-1 Depreciation Expense'!AA25 -> 17690852.85
A37: =A36+1 -> 20 | C37: Amortization of AROs | E37: EDE ARO | G37: Schedule F-7 | I37: ='F-7 ARO Asset Amort.'!K18 -> 863979.0597 | K37: ='F-7 ARO Asset Amort.'!M14 -> 0.8827583174 | M37: =I37*K37 -> 762684.701
A38: =A37+1 -> 21 | C38: Total Non-FAC Expenses | I38: =SUM(I36:I37) -> 20935112.11 | M38: =SUM(M36:M37) -> 18453537.55
A40: =A38+1 -> 22 | C40: Non-FAC Operating Income / (Loss) | I40: =I33-I38 -> -40078507.38 | M40: =M33-M38 -> -35286600.86
A42: =A40+1 -> 23 | C42: Empire Net Operating Income | I42: =I24+I40 -> 16291206.65 | M42: =M24+M40 -> 14474233.05
A45: Source: | B45: See reference column (c).
A47: Purpose: | B47: To calculate the operating income for the wind projects.

Sheet F-2 WindHoldCo Op Inc
A1: =Index!A1 -> The Empire District Electric Company
A2: =Index!A2 -> Test Year Ending September 30, 2020
A3: =Index!A3 -> ER-2021-0312
A4: =CONCATENATE(Index!C31," ",Index!F31) -> Schedule F-2 Operating Income Statement of Empire's Share of the Wind Holding Companies
I7: Total | K7: Missouri | M7: Total
A8: Line | I8: Company | K8: Allocation | M8: Missouri
A9: No. | C9: Description | E9: Source Party | G9: Reference | I9: Wind Project | K9: Factor | M9: Wind Project
C10: (a) | E10: (b) | G10: (c) | I10: (d) | K10: (e) | M10: (f) = (d) x (e)
A12: 1 | C12: FAC Operating Income
A14: =A12+1 -> 2 | C14: Revenues | E14: Inflow from
A15: =A14+1 -> 3 | C15: ='F-3 Op Inc Detail'!C13 -> Market Revenues: | E15: SPP | G15: Schedule F-3 | I15: ='F-3 Op Inc Detail'!M15 -> 55294591.8 | K15: ='F-3 Op Inc Detail'!O14 -> 0.8827583174 | M15: =I15*K15 -> 48811760.82
A16: =A15+1 -> 4 | C16: ='F-3 Op Inc Detail'!C21 -> Hedge Net Settlement: | E16: Empire | G16: Schedule F-3 | I16: ='F-3 Op Inc Detail'!M23 -> 12479455.7 | K16: ='F-3 Op Inc Detail'!O22 -> 0.8827583174 | M16: =I16*K16 -> 11016343.32
A17: =A16+1 -> 5 | C17: ='F-3 Op Inc Detail'!C25 -> Renewable Energy Credits: | E17: External | G17: Schedule F-3 | I17: ='F-3 Op Inc Detail'!M27 -> 467554.0621 | K17: ='F-3 Op Inc Detail'!O26 -> 0.8827583174 | M17: =I17*K17 -> 412737.2371
A18: =A17+1 -> 6 | C18: Production Tax Credits | E18: External | G18: Schedule F-3 | I18: ='F-3 Op Inc Detail'!M31 -> 607568.1721 | K18: ='F-3 Op Inc Detail'!O30 -> 0.8827583174 | M18: =I18*K18 -> 536335.8573
A19: =A18+1 -> 7 | C19: Total FAC Revenues | I19: =SUM(I15:I18) -> 68849169.73 | M19: =SUM(M15:M18) -> 60777177.23
A21: =A19+1 -> 8 | C21: Expenses | E21: Outflow to
A22: =A21+1 -> 9 | C22: N/A | I22: 0 | M22: 0
A23: =A22+1 -> 10 | C23: Total FAC Expenses | I23: =SUM(I22) -> 0 | M23: =SUM(M22) -> 0
A25: =A23+1 -> 11 | C25: FAC Operating Income | E25: Empire | I25: =I19-I23 -> 68849169.73 | M25: =M19-M23 -> 60777177.23
A27: =A25+1 -> 12 | C27: Non-FAC Operating Income
A29: =A27+1 -> 13 | C29: Revenues
A30: =A29+1 -> 14 | C30: N/A | I30: 0 | M30: =I30*K30 -> 0
A31: =A30+1 -> 15 | C31: Total Non-FAC Revenues | I31: =SUM(I30) -> 0 | M31: =SUM(M30) -> 0
A33: =A31+1 -> 16 | C33: Expenses
A34: =A33+1 -> 17 | C34: ='F-3 Op Inc Detail'!C47 -> Operations and Maintenance Agreement: | E34: Empire | G34: Schedule F-3 | I34: ='F-3 Op Inc Detail'!M50 -> 2116261.034 | K34: ='F-3 Op Inc Detail'!O48 -> 0.8827583174 | M34: =I34*K34 -> 1868147.03
A35: =A34+1 -> 18 | C35: ='F-3 Op Inc Detail'!C52 -> Asset Management and Services Agreement: | E35: Empire | G35: Schedule F-3 | I35: ='F-3 Op Inc Detail'!M55 -> 290624.25 | K35: ='F-3 Op Inc Detail'!O53 -> 0.8827583174 | M35: 256550.9739
A36: 19 | C36: ='F-3 Op Inc Detail'!C57 -> Energy Management Services Agreement: | E36: Empire | G36: Schedule F-3 | I36: ='F-3 Op Inc Detail'!M59 -> 213000 | K36: ='F-3 Op Inc Detail'!O58 -> 0.8827583174 | M36: 188027.5216
A37: 20 | C37: ='F-3 Op Inc Detail'!C61 -> Service and Maintenance Agreement: | E37: External | G37: Schedule F-3 | I37: ='F-3 Op Inc Detail'!M63 -> 8864000 | K37: ='F-3 Op Inc Detail'!O62 -> 0.8827583174 | M37: 7824769.725
A38: 21 | C38: Vestas Settlement | E38: External | G38: Schedule F-3 | I38: ='F-3 Op Inc Detail'!M41 -> -448276 | K38: ='F-3 Op Inc Detail'!O40 -> 0.8827583174 | M38: -395719.3675
A39: 22 | C39: ='F-3 Op Inc Detail'!C65 -> Affiliate Services Agreements Expenses: | E39: Liberty Power | G39: Schedule F-3 | I39: ='F-3 Op Inc Detail'!M67 -> 156600 | K39: ='F-3 Op Inc Detail'!O66 -> 0.8768879708 | M39: 137320.6562
A40: 23 | C40: ='F-3 Op Inc Detail'!C69 -> Insurance Expense: | E40: External | G40: Schedule F-3 | I40: ='F-3 Op Inc Detail'!M69 -> 1257617.96 | K40: ='F-3 Op Inc Detail'!O69 -> 0.8768879708 | M40: 1102790.061
A41: 24 | C41: ='F-3 Op Inc Detail'!C71 -> Land Lease/Met Towers Expense: | E41: External | G41: Schedule F-3 | I41: ='F-3 Op Inc Detail'!M71 -> 3084349.718 | K41: ='F-3 Op Inc Detail'!O71 -> 0.8827583174 | M41: 2722735.368
A42: 25 | C42: ='F-3 Op Inc Detail'!C73 -> Post Construction Environmental Costs | E42: External | G42: Schedule F-3 | I42: ='F-3 Op Inc Detail'!M73 -> 971340 | K42: ='F-3 Op Inc Detail'!O73 -> 0.8768879708 | M42: 851756.3616
A43: 26 | C43: Property Tax | E43: External | G43: Schedule F-4 | I43: ='F-4 Property Tax'!W37+'F-4 Property Tax'!Y37 -> 5257763.591 | K43: ='F-4 Property Tax'!O37 -> 0.8728826295 | M43: ='F-4 Property Tax'!W37 -> 4589410.509
A44: 27 | C44: Total Non-FAC Expenses | I44: =SUM(I34:I43) -> 21763280.55 | M44: =SUM(M34:M43) -> 19145788.84
A46: =A44+1 -> 28 | C46: Non-FAC Operating Loss | E46: Empire | I46: =I31-I44 -> -21763280.55 | M46: =M31-M44 -> -19145788.84
A48: =A46+1 -> 29 | C48: Empire WindHoldCo Operating Income | E48: Empire | I48: =I25+I46 -> 47085889.18 | M48: =M25+M46 -> 41631388.39
A51: Source: | B51: See reference column (b).
A53: Purpose: | B53: To calculate the operating income for the wind projects.

Sheet F-3 Op Inc Detail
A1: =Index!A1 -> The Empire District Electric Company
A2: =Index!A2 -> Test Year Ending September 30, 2020
A3: =Index!A3 -> ER-2021-0312
A4: =CONCATENATE(Index!C32," ",Index!F32) -> Schedule F-3 Operating Income Detail
G8: Neosho Ridge | I8: North Fork Ridge | K8: Kings Point | M8: Wind Project | O8: Missouri | Q8: Neosho Ridge | S8: North Fork Ridge | U8: Kings Point
A9: Line | G9: Total Company | I9: Total Company | K9: Total Company | M9: Total Company | O9: Allocation | Q9: Missouri | S9: Missouri | U9: Missouri | W9: Total Missouri
A10: No. | C10: Description | E10: Reference | G10: Project Cost | I10: Project Cost | K10: Project Cost | M10: Pro Forma | O10: Factor | Q10: Balance | S10: Balance | U10: Balance | W10: Pro Forma
C11: (a) | E11: (b) | G11: (c) | I11: (d) | K11: (e) | M11: (f) = sum(c:e) | O11: (g) | Q11: (h) = (c) x (g) | S11: (i) = (d) x (g) | U11: (j) = (e) x (g) | W11: (k) = sum(h:j) | Y11: (n) = (h) - (m)
A13: 1 | C13: Market Revenues:
A14: =A13+1 -> 2 | C14: Total Market Revenues | E14: (1) | G14: ='F-5 Wind Rev Detail'!E27 -> 26433859.5 | I14: ='F-5 Wind Rev Detail'!G27 -> 13744007.87 | K14: ='F-5 Wind Rev Detail'!I27 -> 15116724.43 | M14: =SUM(G14:K14) -> 55294591.8 | O14: 0.8827583174 | Q14: =G14*$O$14 -> 23334709.33 | S14: =I14*$O$14 -> 12132637.26 | U14: =K14*$O$14 -> 13344414.22 | W14: =SUM(Q14:V14) -> 48811760.82
A15: =A14+1 -> 3 | G15: =SUM(G13:G14) -> 26433859.5 | I15: =SUM(I13:I14) -> 13744007.87 | K15: =SUM(K13:K14) -> 15116724.43 | M15: =SUM(M13:M14) -> 55294591.8 | Q15: =SUM(Q13:Q14) -> 23334709.33 | S15: =SUM(S13:S14) -> 12132637.26 | U15: =SUM(U13:U14) -> 13344414.22 | W15: =SUM(W13:W14) -> 48811760.82
A17: =A15+1 -> 4 | C17: PAYGO Contributions:
A18: =A17+1 -> 5 | C18: Payments from Tax Equity to Empire | E18: (2) | G18: 0 | I18: 0 | K18: 0 | M18: =SUM(G18:K18) -> 0 | O18: 0.8827583174 | Q18: =G18*$O$18 -> 0 | S18: =I18*$O$18 -> 0 | U18: =K18*$O$18 -> 0 | W18: =SUM(Q18:V18) -> 0
A19: =A18+1 -> 6 | G19: =SUM(G17:G18) -> 0 | I19: =SUM(I17:I18) -> 0 | K19: =SUM(K17:K18) -> 0 | M19: =SUM(M17:M18) -> 0 | Q19: =SUM(Q17:Q18) -> 0 | S19: =SUM(S17:S18) -> 0 | U19: =SUM(U17:U18) -> 0 | W19: =SUM(W17:W18) -> 0
A21: =A19+1 -> 7 | C21: Hedge Net Settlement:
A22: =A21+1 -> 8 | C22: Fixed Hedge Payments Received | E22: (3) | G22: 6515647.76 | I22: 2826205.403 | K22: 3137602.54 | M22: =SUM(G22:K22) -> 12479455.7 | O22: 0.8827583174 | Q22: =G22*$O$22 -> 5751742.253 | S22: =I22*$O$22 -> 2494856.326 | U22: =K22*$O$22 -> 2769744.739 | W22: =SUM(Q22:V22) -> 11016343.32
A23: =A22+1 -> 9 | G23: =SUM(G21:G22) -> 6515647.76 | I23: =SUM(I21:I22) -> 2826205.403 | K23: =SUM(K21:K22) -> 3137602.54 | M23: =SUM(M21:M22) -> 12479455.7 | Q23: =SUM(Q21:Q22) -> 5751742.253 | S23: =SUM(S21:S22) -> 2494856.326 | U23: =SUM(U21:U22) -> 2769744.739 | W23: =SUM(W21:W22) -> 11016343.32
A25: =A23+1 -> 10 | C25: Renewable Energy Credits:
A26: =A25+1 -> 11 | C26: REC Revenue | E26: (4) | G26: 250869.5823 | I26: 104858.6992 | K26: 111825.7806 | M26: =SUM(G26:K26) -> 467554.0621 | O26: 0.8827583174 | Q26: =G26*$O$26 -> 221457.2103 | S26: =I26*$O$26 -> 92564.88885 | U26: =K26*$O$26 -> 98715.13794 | W26: =SUM(Q26:V26) -> 412737.2371
A27: =A26+1 -> 12 | G27: =SUM(G25:G26) -> 250869.5823 | I27: =SUM(I25:I26) -> 104858.6992 | K27: =SUM(K25:K26) -> 111825.7806 | M27: =SUM(M25:M26) -> 467554.0621 | Q27: =SUM(Q25:Q26) -> 221457.2103 | S27: =SUM(S25:S26) -> 92564.88885 | U27: =SUM(U25:U26) -> 98715.13794 | W27: =SUM(W25:W26) -> 412737.2371
A29: =A27+1 -> 13 | C29: Production Tax Credits
A30: =A29+1 -> 14 | C30: PTC Revenues - 1% of Partnership | E30: (4) | G30: 324375.8477 | I30: 137818.8096 | K30: 145373.5148 | M30: =SUM(G30:K30) -> 607568.1721 | O30: 0.8827583174 | Q30: =G30*$O$26 -> 286345.4775 | S30: =I30*$O$26 -> 121660.7005 | U30: =K30*$O$26 -> 128329.6793 | W30: =SUM(Q30:V30) -> 536335.8573
A31: =A30+1 -> 15 | G31: =SUM(G29:G30) -> 324375.8477 | I31: =SUM(I29:I30) -> 137818.8096 | K31: =SUM(K29:K30) -> 145373.5148 | M31: =SUM(M29:M30) -> 607568.1721 | Q31: =SUM(Q29:Q30) -> 286345.4775 | S31: =SUM(S29:S30) -> 121660.7005 | U31: =SUM(U29:U30) -> 128329.6793 | W31: =SUM(W29:W30) -> 536335.8573
A33: =A31+1 -> 16 | C33: Total Income | G33: =G15+G19++G23+G27+G31 -> 33524752.69 | I33: =I15+I19++I23+I27+I31 -> 16812890.79 | K33: =K15+K19++K23+K27+K31 -> 18511526.26 | M33: =M15+M19++M23+M27+M31 -> 68849169.73 | Q33: =Q15+Q19++Q23+Q27+Q31 -> 29594254.27 | S33: =S15+S19++S23+S27+S31 -> 14841719.18 | U33: =U15+U19++U23+U27+U31 -> 16341203.77 | W33: =W15+W19++W23+W27+W31 -> 60777177.23
A35: =A33+1 -> 17 | C35: Tax Equity Distributions:
A36: =A35+1 -> 18 | C36: Payments from Empire to Tax Equity | E36: (5) | G36: 0 | I36: 0 | K36: 0 | M36: =SUM(G36:K36) -> 0 | O36: 0.8827583174 | Q36: =G36*$O$36 -> 0 | S36: =I36*$O$36 -> 0 | U36: =K36*$O$36 -> 0 | W36: =M36*$O$36 -> 0
A37: =A36+1 -> 19 | G37: =SUM(G35:G36) -> 0 | I37: =SUM(I35:I36) -> 0 | K37: =SUM(K35:K36) -> 0 | M37: =SUM(M35:M36) -> 0 | Q37: =SUM(Q35:Q36) -> 0 | S37: =SUM(S35:S36) -> 0 | U37: =SUM(U35:U36) -> 0 | W37: =SUM(W35:W36) -> 0
A39: =A37+1 -> 20 | C39: Vestas Settlement:
A40: =A39+1 -> 21 | C40: SMA Fee Reduction | E40: (6) | G40: =-'F-6 Vestas Settlement'!$M$14 -> -122320 | I40: =-'F-6 Vestas Settlement'!$M$15 -> -162978 | K40: =-'F-6 Vestas Settlement'!$M$16 -> -162978 | M40: =SUM(G40:K40) -> -448276 | O40: ='F-6 Vestas Settlement'!O14 -> 0.8827583174 | Q40: =G40*$O$44 -> -107978.9974 | S40: =I40*$O$44 -> -143870.1851 | U40: =K40*$O$44 -> -143870.1851 | W40: =SUM(Q40:V40) -> -395719.3675
A41: =A40+1 -> 22 | G41: =SUM(G39:G40) -> -122320 | I41: =SUM(I39:I40) -> -162978 | K41: =SUM(K39:K40) -> -162978 | M41: =SUM(M39:M40) -> -448276 | Q41: =SUM(Q39:Q40) -> -107978.9974 | S41: =SUM(S39:S40) -> -143870.1851 | U41: =SUM(U39:U40) -> -143870.1851 | W41: =SUM(W39:W40) -> -395719.3675
A43: =A41+1 -> 23 | C43: Hedge Net Settlement:
A44: =A43+1 -> 24 | C44: Hedge Merchant Revenue Payments | E44: (7) | G44: =G22 -> 6515647.76 | I44: =I22 -> 2826205.403 | K44: =K22 -> 3137602.54 | M44: =SUM(G44:K44) -> 12479455.7 | O44: =O22 -> 0.8827583174 | Q44: =G44*$O$44 -> 5751742.253 | S44: =I44*$O$44 -> 2494856.326 | U44: =K44*$O$44 -> 2769744.739 | W44: =SUM(Q44:V44) -> 11016343.32
A45: =A44+1 -> 25 | G45: =SUM(G43:G44) -> 6515647.76 | I45: =SUM(I43:I44) -> 2826205.403 | K45: =SUM(K43:K44) -> 3137602.54 | M45: =SUM(M43:M44) -> 12479455.7 | Q45: =SUM(Q43:Q44) -> 5751742.253 | S45: =SUM(S43:S44) -> 2494856.326 | U45: =SUM(U43:U44) -> 2769744.739 | W45: =SUM(W43:W44) -> 11016343.32
A47: =A45+1 -> 26 | C47: Operations and Maintenance Agreement:
A48: =A47+1 -> 27 | C48: Fixed Costs | E48: (8) | G48: 370351.2208 | I48: 183944.0287 | K48: 183944.0287 | M48: =SUM(G48:K48) -> 738239.2782 | O48: 0.8827583174 | Q48: =G48*O48 -> 326930.6205 | S48: =I48*O48 -> 162378.1213 | U48: =K48*O48 -> 162378.1213 | W48: =SUM(Q48:U48) -> 651686.863
A49: =A48+1 -> 28 | C49: Transactional Costs | E49: (9) | G49: 713033.489 | I49: 332494.1334 | K49: 332494.1334 | M49: =SUM(G49:K49) -> 1378021.756 | O49: 0.8827583174 | Q49: =G49*O49 -> 629436.243 | S49: =I49*O49 -> 293511.9618 | U49: =K49*O49 -> 293511.9618 | W49: =SUM(Q49:U49) -> 1216460.167
A50: =A49+1 -> 29 | G50: =SUM(G48:G49) -> 1083384.71 | I50: =SUM(I48:I49) -> 516438.1621 | K50: =SUM(K48:K49) -> 516438.1621 | M50: =SUM(M48:M49) -> 2116261.034 | Q50: =SUM(Q48:Q49) -> 956366.8635 | S50: =SUM(S48:S49) -> 455890.083 | U50: =SUM(U48:U49) -> 455890.083 | W50: =SUM(W48:W49) -> 1868147.03
A52: =A50+1 -> 30 | C52: Asset Management and Services Agreement:
A53: =A52+1 -> 31 | C53: Fixed Costs | E53: (10) | G53: 105663.3996 | I53: 52480.4252 | K53: 52480.4252 | M53: =SUM(G53:K53) -> 210624.25 | O53: 0.8827583174 | Q53: =G53*O53 -> 93275.24484 | S53: =I53*O53 -> 46327.53185 | U53: =K53*O53 -> 46327.53185 | W53: =SUM(Q53:U53) -> 185930.3085
A54: =A53+1 -> 32 | C54: Transactional Costs | E54: (11) | G54: 40133.42228 | I54: 19933.28886 | K54: 19933.28886 | M54: =SUM(G54:K54) -> 80000 | O54: 0.8827583174 | Q54: =G54*O54 -> 35428.11232 | S54: =I54*O54 -> 17596.27653 | U54: =K54*O54 -> 17596.27653 | W54: =SUM(Q54:U54) -> 70620.66539
A55: =A54+1 -> 33 | G55: =SUM(G53:G54) -> 145796.8219 | I55: =SUM(I53:I54) -> 72413.71406 | K55: =SUM(K53:K54) -> 72413.71406 | M55: =SUM(M53:M54) -> 290624.25 | Q55: =SUM(Q53:Q54) -> 128703.3572 | S55: =SUM(S53:S54) -> 63923.80838 | U55: =SUM(U53:U54) -> 63923.80838 | W55: =SUM(W53:W54) -> 256550.9739
A57: =A55+1 -> 34 | C57: Energy Management Services Agreement:
A58: =A57+1 -> 35 | C58: Fixed Costs | E58: (12) | G58: 69000 | I58: 72000 | K58: 72000 | M58: =SUM(G58:K58) -> 213000 | O58: 0.8827583174 | Q58: =G58*O58 -> 60910.3239 | S58: =I58*O58 -> 63558.59885 | U58: =K58*O58 -> 63558.59885 | W58: =SUM(Q58:U58) -> 188027.5216
A59: =A58+1 -> 36 | G59: =G58 -> 69000 | I59: =I58 -> 72000 | K59: =K58 -> 72000 | M59: =M58 -> 213000 | Q59: =Q58 -> 60910.3239 | S59: =S58 -> 63558.59885 | U59: =U58 -> 63558.59885 | W59: =W58 -> 188027.5216
A61: =A59+1 -> 37 | C61: Service and Maintenance Agreement:
C62: Vestas Agreements | E62: (13) | G62: =32000*Input!C14 -> 4448000 | I62: =32000*Input!C15 -> 2208000 | K62: =32000*Input!C16 -> 2208000 | M62: =SUM(G62:K62) -> 8864000 | O62: 0.8827583174 | Q62: =G62*O62 -> 3926508.996 | S62: =I62*O62 -> 1949130.365 | U62: =K62*O62 -> 1949130.365 | W62: =SUM(Q62:U62) -> 7824769.725
A63: =A61+1 -> 38 | G63: =G62 -> 4448000 | I63: =I62 -> 2208000 | K63: =K62 -> 2208000 | M63: =M62 -> 8864000 | Q63: =Q62 -> 3926508.996 | S63: =S62 -> 1949130.365 | U63: =U62 -> 1949130.365 | W63: =W62 -> 7824769.725
A65: =A63+1 -> 39 | C65: Affiliate Services Agreements Expenses:
A66: =A65+1 -> 40 | C66: Operations Training | E66: (14) | G66: =37800+10800+3600 -> 52200 | I66: =37800+10800+3600 -> 52200 | K66: =37800+10800+3600 -> 52200 | M66: =SUM(G66:K66) -> 156600 | O66: 0.8768879708 | Q66: =G66*O66 -> 45773.55208 | S66: =I66*O66 -> 45773.55208 | U66: =K66*O66 -> 45773.55208 | W66: =SUM(Q66:U66) -> 137320.6562
A67: =A66+1 -> 41 | G67: =SUM(G66:G66) -> 52200 | I67: =SUM(I66:I66) -> 52200 | K67: =SUM(K66:K66) -> 52200 | M67: =SUM(M66:M66) -> 156600 | Q67: =SUM(Q66:Q66) -> 45773.55208 | S67: =SUM(S66:S66) -> 45773.55208 | U67: =SUM(U66:U66) -> 45773.55208 | W67: =SUM(W66:W66) -> 137320.6562
A69: =A67+1 -> 42 | C69: Insurance Expense: | E69: (15) | G69: 413116.96 | I69: 431701 | K69: 412800 | M69: =SUM(G69:K69) -> 1257617.96 | O69: 0.8768879708 | Q69: =G69*O69 -> 362257.2928 | S69: =I69*O69 -> 378553.4139 | U69: =K69*O69 -> 361979.3544 | W69: =SUM(Q69:U69) -> 1102790.061
A71: =A69+1 -> 43 | C71: Land Lease/Met Towers Expense: | E71: (16) | G71: 1456492.731 | I71: 733278.8355 | K71: 894578.1515 | M71: =SUM(G71:K71) -> 3084349.718 | O71: 0.8827583174 | Q71: =G71*O71 -> 1285731.073 | S71: =I71*O71 -> 647307.991 | U71: =K71*O71 -> 789696.3038 | W71: =SUM(Q71:U71) -> 2722735.368
A73: =A71+1 -> 44 | C73: Post Construction Environmental Costs | E73: (17) | G73: 120000 | I73: 411000 | K73: 440340 | M73: =SUM(G73:K73) -> 971340 | O73: 0.8768879708 | Q73: =G73*O73 -> 105226.5565 | S73: =I73*O73 -> 360400.956 | U73: =K73*O73 -> 386128.8491 | W73: =SUM(Q73:U73) -> 851756.3616
A75: =A73+1 -> 45 | C75: Property Tax | E75: Sch. F-4 | G75: ='F-4 Property Tax'!G37 -> 1000000 | I75: ='F-4 Property Tax'!I37 -> 2151696.143 | K75: ='F-4 Property Tax'!K37 -> 2106067.448 | M75: =SUM(G75:K75) -> 5257763.591 | O75: 0.8728826295 | Q75: =G75*O75 -> 872882.6295 | S75: =I75*O75 -> 1878178.187 | U75: =K75*O75 -> 1838349.692 | W75: =SUM(Q75:U75) -> 4589410.509
A77: =A75+1 -> 46 | C77: Total Expense | G77: =G37+G41+G45+G50+G55+G59+G63+G67+G69+G71+G73+G75 -> 15181318.98 | I77: =I37+I41+I45+I50+I55+I59+I63+I67+I69+I71+I73+I75 -> 9311955.257 | K77: =K37+K41+K45+K50+K55+K59+K63+K67+K69+K71+K73+K75 -> 9749462.016 | M77: =M37+M41+M45+M50+M55+M59+M63+M67+M69+M71+M73+M75 -> 34242736.26 | Q77: =Q37+Q41+Q45+Q50+Q55+Q59+Q63+Q67+Q69+Q71+Q73+Q75 -> 13388123.9 | S77: =S37+S41+S45+S50+S55+S59+S63+S67+S69+S71+S73+S75 -> 8193703.096 | U77: =U37+U41+U45+U50+U55+U59+U63+U67+U69+U71+U73+U75 -> 8580305.16 | W77: =W37+W41+W45+W50+W55+W59+W63+W67+W69+W71+W73+W75 -> 30162132.16
A79: =A77+1 -> 47 | C79: Total Operating Income/(Loss) | G79: =G33-G77 -> 18343433.7 | I79: =I33-I77 -> 7500935.528 | K79: =K33-K77 -> 8762064.246 | M79: =M33-M77 -> 34606433.48 | Q79: =Q33-Q77 -> 16206130.37 | S79: =S33-S77 -> 6648016.084 | U79: =U33-U77 -> 7760898.615 | W79: =W33-W77 -> 30615045.07
A82: Footnotes:
A83: (1) | B83: Schedule F-4, Wind Revenue Detail.
A84: (2) | B84: Empire is proposing to include future PAYGO contributions in the FAC since they are dependent on variable market revenues.
A85: (3) | B85: The hedge net settlement is a transaction between the wind holding company and Empire that nets to zero.
A86: (4) | B86: Empire receives 1% of Production Tax Credits from the partnership.
A87: (5) | B87: Empire is proposing to include future tax equity distributions in the FAC since they are dependent on variable market revenues.
A88: (6) | B88: Schedule F-5, Vestas Settlement.
A89: (7) | B89: The hedge net settlement is a transaction between the wind holding company and Empire that nets to zero.
A90: (8) | B90: Operations and Maintenance Agreement
A91: (9) | B91: 2018 BOP O&M Estimates
A92: (10) | B92: Asset Management and Services Agreement
A93: (11) | B93: 2018 BOP O&M Estimates
A94: (12) | B94: Energy Management Services Agreement
A95: (13) | B95: Vestas Service and Maintenance Agreement
A96: (14) | B96: Affiliate Services Agreement
A97: (15) | B97: Wind Project insurance costs.
A98: (16) | B98: 2018 BOP O&M Estimates
A99: (17) | B99: Summary of lowest cost estimates for Post-Construction Environmental Costs
A101: Purpose: | B101: Capture all operating and maintenance costs associated with the wind projects.

Sheet F-4 Property Tax
A1: =Index!A1 -> The Empire District Electric Company
A2: =Index!A2 -> Test Year Ending September 30, 2020
A3: =Index!A3 -> ER-2021-0312
A4: =CONCATENATE(Index!C33," ",Index!F33) -> Schedule F-4 Property Tax
G8: Neosho Ridge | I8: North Fork Ridge | K8: Kings Point | M8: Wind Project | O8: Missouri | Q8: Neosho Ridge | S8: North Fork Ridge | U8: Kings Point | W8: Total | Y8: Other Jurisdiction
A9: Line | G9: Total | I9: Total | K9: Total | M9: Total Company | O9: Jurisdictional | Q9: Missouri | S9: Missouri | U9: Missouri | W9: Missouri | Y9: Not At Issue
A10: No. | C10: Description | E10: Reference | G10: PILOT | I10: Property Tax | K10: Property Tax | M10: Property Tax | O10: Allocator | Q10: Property Tax | S10: Property Tax | U10: Property Tax | W10: Property Tax | Y10: Balance
C11: (a) | E11: (b) | G11: (c) | I11: (d) | K11: (e) | M11: (f) = sum(c:e) | O11: (g) | Q11: (h) = (c) x (g) | S11: (i) = (d) x (g) | U11: (j) = (e) x (g) | W11: (k) = sum(h:j) | Y11: (l) = (f) x (1-g)
A13: PROPERTY TAXES
A14: 1 | C14: Assessed Value:
A15: =A14+1 -> 2 | C15: Barton County | E15: (1) | G15: 0 | I15: 37291094.33 | K15: 0 | M15: =SUM(G15:K15) -> 37291094.33 | O15: 0.8728826295 | Q15: =G15*O15 -> 0 | S15: =I15*O15 -> 32550748.48 | U15: =K15*O15 -> 0 | W15: =M15*O15 -> 32550748.48 | Y15: =(1-O15)*M15 -> 4740345.854
A16: 3 | C16: Dade County | E16: (1) | G16: 0 | I16: 0 | K16: 10719623.22 | M16: =SUM(G16:K16) -> 10719623.22 | O16: 0.8728826295 | Q16: =G16*O16 -> 0 | S16: =I16*O16 -> 0 | U16: =K16*O16 -> 9356972.904 | W16: =M16*O16 -> 9356972.904 | Y16: =(1-O16)*M16 -> 1362650.316
A17: 4 | C17: Jasper County | E17: (1) | G17: 0 | I17: 0 | K17: 16925720.87 | M17: =SUM(G17:K17) -> 16925720.87 | O17: 0.8728826295 | Q17: =G17*O17 -> 0 | S17: =I17*O17 -> 0 | U17: =K17*O17 -> 14774167.74 | W17: =M17*O17 -> 14774167.74 | Y17: =(1-O17)*M17 -> 2151553.131
A18: 5 | C18: Lawrence County | E18: (1) | G18: 0 | I18: 0 | K18: 11283813.92 | M18: =SUM(G18:K18) -> 11283813.92 | O18: 0.8728826295 | Q18: =G18*O18 -> 0 | S18: =I18*O18 -> 0 | U18: =K18*O18 -> 9849445.162 | W18: =M18*O18 -> 9849445.162 | Y18: =(1-O18)*M18 -> 1434368.754
A19: 6 | C19: Neosho County | G19: 0 | I19: 0 | K19: 0 | M19: 0 | Q19: =G19*O19 -> 0 | S19: =I19*O19 -> 0 | U19: =K19*O19 -> 0 | W19: =M19*O19 -> 0 | Y19: =(1-O19)*M19 -> 0
A20: 7 | G20: =SUM(G15:G19) -> 0 | I20: =SUM(I15:I19) -> 37291094.33 | K20: =SUM(K15:K18) -> 38929158.01 | M20: =SUM(M15:M18) -> 76220252.34 | O20: 0.8728826295 | Q20: =SUM(Q15:Q19) -> 0 | S20: =SUM(S15:S19) -> 32550748.48 | U20: =SUM(U15:U19) -> 33980585.81 | W20: =SUM(W15:W19) -> 66531334.28 | Y20: =SUM(Y15:Y19) -> 9688918.056
A22: =A20+1 -> 8 | C22: County Tax Rates:
A23: =A22+1 -> 9 | C23: Barton County - NFR | E23: (2) | G23: 0.0577 | I23: 0.0577 | K23: 0.0577 | M23: 0.0577 | Q23: =G23 -> 0.0577 | S23: =I23 -> 0.0577 | U23: =K23 -> 0.0577 | W23: =M23 -> 0.0577 | Y23: =W23 -> 0.0577
A24: =A23+1 -> 10 | C24: Dade County - KP | E24: (2) | G24: 0.0561 | I24: 0.0561 | K24: 0.0561 | M24: 0.0561 | Q24: =G24 -> 0.0561 | S24: =I24 -> 0.0561 | U24: =K24 -> 0.0561 | W24: =M24 -> 0.0561 | Y24: =W24 -> 0.0561
A25: =A24+1 -> 11 | C25: Jasper County - KP | E25: (2) | G25: 0.0533 | I25: 0.0533 | K25: 0.0533 | M25: 0.0533 | Q25: =G25 -> 0.0533 | S25: =I25 -> 0.0533 | U25: =K25 -> 0.0533 | W25: =M25 -> 0.0533 | Y25: 0.0533
A26: =A25+1 -> 12 | C26: Lawrence County - KP | E26: (2) | G26: 0.0534 | I26: 0.0534 | K26: 0.0534 | M26: 0.0534 | Q26: =G26 -> 0.0534 | S26: =I26 -> 0.0534 | U26: =K26 -> 0.0534 | W26: =M26 -> 0.0534 | Y26: 0.0534
A27: =A26+1 -> 13 | C27: Neosho County | E27: (3) | G27: 0 | I27: 0 | K27: 0 | M27: 0 | Q27: =G27 -> 0 | S27: =I27 -> 0 | U27: =K27 -> 0 | W27: =M27 -> 0 | Y27: 0
A29: =A27+1 -> 14 | C29: Property Tax/PILOT:
A30: =A29+1 -> 15 | C30: Barton County | G30: =G15*G23 -> 0 | I30: =I15*I23 -> 2151696.143 | K30: =K15*K23 -> 0 | M30: =M15*M23 -> 2151696.143 | O30: 0.8728826295 | Q30: =Q15*Q23 -> 0 | S30: =S15*S23 -> 1878178.187 | U30: =U15*U23 -> 0 | W30: =W15*W23 -> 1878178.187 | Y30: =Y15*Y23 -> 273517.9558
A31: 16 | C31: Dade County | G31: =G16*G24 -> 0 | I31: =I16*I24 -> 0 | K31: =K16*K24 -> 601370.8627 | M31: =M16*M24 -> 601370.8627 | O31: 0.8728826295 | Q31: =Q16*Q24 -> 0 | S31: =S16*S24 -> 0 | U31: =U16*U24 -> 524926.1799 | W31: =W16*W24 -> 524926.1799 | Y31: =Y16*Y24 -> 76444.68275
A32: 17 | C32: Jasper County | G32: =G17*G25 -> 0 | I32: =I17*I25 -> 0 | K32: =K17*K25 -> 902140.9226 | M32: =M17*M25 -> 902140.9226 | O32: 0.8728826295 | Q32: =Q17*Q25 -> 0 | S32: =S17*S25 -> 0 | U32: =U17*U25 -> 787463.1407 | W32: =W17*W25 -> 787463.1407 | Y32: =Y17*Y25 -> 114677.7819
A33: 18 | C33: Lawrence County | G33: =G18*G26 -> 0 | I33: =I18*I26 -> 0 | K33: =K18*K26 -> 602555.6631 | M33: =M18*M26 -> 602555.6631 | O33: 0.8728826295 | Q33: =Q18*Q26 -> 0 | S33: =S18*S26 -> 0 | U33: =U18*U26 -> 525960.3716 | W33: =W18*W26 -> 525960.3716 | Y33: =Y18*Y26 -> 76595.29147
A34: 19 | C34: Neosho County | E34: (4) | G34: 1000000 | I34: 0 | K34: 0 | M34: 0 | O34: 0.8728826295 | Q34: =G34*$O$34 -> 872882.6295 | S34: =I34*$O$34 -> 0 | U34: =K34*$O$34 -> 0 | W34: =M34*$O$34 -> 0 | Y34: =(1-O34)*G34 -> 127117.3705
A35: 20 | C35: Total | G35: =SUM(G30:G34) -> 1000000 | I35: =SUM(I30:I34) -> 2151696.143 | K35: =SUM(K30:K34) -> 2106067.448 | M35: =SUM(M30:M34) -> 4257763.591 | O35: 0.8728826295 | Q35: =SUM(Q30:Q34) -> 872882.6295 | S35: =SUM(S30:S34) -> 1878178.187 | U35: =SUM(U30:U34) -> 1838349.692 | W35: =SUM(W30:W34) -> 3716527.879 | Y35: =SUM(Y30:Y34) -> 668353.0824
A37: =A35+1 -> 21 | C37: Total Taxes Other Than Income Taxes: | G37: =G35 -> 1000000 | I37: =I35 -> 2151696.143 | K37: =K35 -> 2106067.448 | M37: =SUM(G37:K37) -> 5257763.591 | O37: 0.8728826295 | Q37: =Q35 -> 872882.6295 | S37: =S35 -> 1878178.187 | U37: =U35 -> 1838349.692 | W37: =SUM(Q37:U37) -> 4589410.509 | Y37: =Y35 -> 668353.0824
A40: Footnote:
A41: (1) - Assessed values are based on expected for plant in service for 2021.
A42: (2) - Average tax rates from 2019 EDE tax liability.
A43: (3) - Tax exempt in Neosho county for first 10 years of project.
A44: (4) - Payments in lieu of tax (PILOT) made in Neosho County.
A46: Source: | B46: See reference column (d).
A48: Purpose: | B48: To present the taxes other than income tax accounts and amounts for the test year.

Sheet F-5 Wind Rev Detail
A1: =Index!A1 -> The Empire District Electric Company
A2: =Index!A2 -> Test Year Ending September 30, 2020
A3: =Index!A3 -> ER-2021-0312
A4: =CONCATENATE(Index!C34," ",Index!F34) -> Schedule F-5 Wind Revenue Detail
E8: Neosho Ridge | G8: North Fork Ridge | I8: Kings Point | K8: Total Company | M8: Missouri | O8: Missouri
A9: Line | E9: Projected | G9: Projected | I9: Projected | K9: Projected | M9: Allocation | O9: Projected
A10: No. | C10: Month | E10: Wind Revenues | G10: Wind Revenues | I10: Wind Revenues | K10: Wind Revenues | M10: Factor | O10: Wind Revenues
C11: (a) | E11: (b) | G11: (c) | I11: (d) | K11: (e) = sum(b:d) | M11: (f) | O11: (g) = (e) x (f)
A13: Projected Annual Wind Revenues
A14: 1 | C14: January | E14: 2672693.115 | G14: 1339387.207 | I14: 1461567.261 | K14: =SUM(E14:I14) -> 5473647.583 | M14: 0.8827583174 | O14: =K14*M14 -> 4831907.93
A15: =A14+1 -> 2 | C15: February | E15: 2236345.703 | G15: 1066074.707 | I15: 1226719.849 | K15: =SUM(E15:I15) -> 4529140.259 | M15: 0.8827583174 | O15: =K15*M15 -> 3998136.234
A16: =A15+1 -> 3 | C16: March | E16: 2673975.342 | G16: 1315818.481 | I16: 1514832.397 | K16: 5504626.221 | M16: 0.8827583174 | O16: 4859254.58
A17: =A16+1 -> 4 | C17: April | E17: 1423060.425 | G17: 1264979.492 | I17: 1380668.579 | K17: 4068708.496 | M17: 0.8827583174 | O17: 3591686.266
A18: =A17+1 -> 5 | C18: May | E18: 1631739.624 | G18: 1158626.953 | I18: 1262725.586 | K18: 4053092.163 | M18: 0.8827583174 | O18: 3577900.818
A19: =A18+1 -> 6 | C19: June | E19: 2019689.575 | G19: 842821.8384 | I19: 1056730.713 | K19: 3919242.126 | M19: 0.8827583174 | O19: 3459743.585
A20: =A19+1 -> 7 | C20: July | E20: 2160260.01 | G20: 845803.7109 | I20: 915902.4048 | K20: 3921966.125 | M20: 0.8827583174 | O20: 3462148.218
A21: 8 | C21: August | E21: 2055134.033 | G21: 992794.9219 | I21: 1024841.064 | K21: 4072770.02 | M21: 0.8827583174 | O21: 3595271.61
A22: 9 | C22: September | E22: 2076156.982 | G22: 1039487.427 | I22: 1087465.82 | K22: 4203110.229 | M22: 0.8827583174 | O22: 3710330.514
A23: 10 | C23: October | E23: 2580174.805 | G23: 1179628.662 | I23: 1210504.272 | K23: 4970307.739 | M23: 0.8827583174 | O23: 4387580.497
A24: 11 | C24: November | E24: 2321887.207 | G24: 1445779.419 | I24: 1559186.157 | K24: 5326852.783 | M24: 0.8827583174 | O24: 4702323.6
A25: 12 | C25: December | E25: 2582742.676 | G25: 1252805.054 | I25: 1415580.322 | K25: 5251128.052 | M25: 0.8827583174 | O25: 4635476.963
A27: =A25+1 -> 13 | E27: =SUM(E14:E25) -> 26433859.5 | G27: =SUM(G14:G25) -> 13744007.87 | I27: =SUM(I14:I25) -> 15116724.43 | K27: =SUM(K14:K25) -> 55294591.8 | O27: =SUM(O14:O25) -> 48811760.82
A30: Source: | B30: Wind Revenues provided by David Busse, Fuel Procurement.
A32: Purpose: | B32: To calculatue the total market revenues for the wind projects.

Sheet F-6 Vestas Settlement
A1: =Index!A1 -> The Empire District Electric Company
A2: =Index!A2 -> Test Year Ending September 30, 2020
A3: =Index!A3 -> ER-2021-0312
A4: =CONCATENATE(Index!C35," ",Index!F35) -> Schedule F-6 Vestas Settlement Reduction to Operating Expense
E8: Total Company | G8: Total Company | I8: Total Company | K8: Project | M8: Total Company | O8: Missouri | Q8: Missouri
A9: Line | E9: Original Fee | G9: Settlement Fee | I9: Fee Reduction | K9: WTGs | M9: Project | O9: Allocation | Q9: Projected
A10: No. | C10: Description | E10: Per WTG | G10: Per WTG | I10: Per WTG | M10: Fee Reduction | O10: Factor | Q10: Fee Reduction
C11: (a) | E11: (b) | G11: (c) | I11: (d) = (b) - (c) | K11: (e) | M11: (f) = (d) x (e) | O11: (g) | Q11: (h) = (f) x (g)
A13: Projected Wind Revenues
A14: 1 | C14: Neosho SMWA Annual Fee Reduction | E14: 32000 | G14: 31120 | I14: =E14-G14 -> 880 | K14: =Input!C14 -> 139 | M14: =I14*K14 -> 122320 | O14: 0.8827583174 | Q14: =M14*O14 -> 107978.9974
A15: =A14+1 -> 2 | C15: Kings Point SMWA Annual Fee Reduction | E15: 31500 | G15: 29138 | I15: =E15-G15 -> 2362 | K15: =Input!C15 -> 69 | M15: =I15*K15 -> 162978 | O15: 0.8827583174 | Q15: =M15*O15 -> 143870.1851
A16: =A15+1 -> 3 | C16: North Fork SMWA Annual Fee Reduction | E16: 31500 | G16: 29138 | I16: =E16-G16 -> 2362 | K16: =Input!C16 -> 69 | M16: =I16*K16 -> 162978 | O16: 0.8827583174 | Q16: 143870.1851
A18: =A16+1 -> 4 | C18: Total Annual Fee Reduction | E18: =SUM(E14:E16) -> 95000 | G18: =SUM(G14:G16) -> 89396 | I18: =SUM(I14:I16) -> 5604 | M18: =SUM(M14:M16) -> 448276 | Q18: =SUM(Q14:Q16) -> 395719.3675
A20: Source: | B20: Empire-Vestas Settlement Agreement for the wind projects.
A22: Purpose: | B22: To reduce Operating Expense to account for the savings created by the Vestas Settlement.

Sheet F-7 ARO Asset Amort.
A1: =Index!A1 -> The Empire District Electric Company
A2: =Index!A2 -> Test Year Ending September 30, 2020
A3: =Index!A3 -> ER-2021-0312
A4: =CONCATENATE(Index!C36," ",Index!F36) -> Schedule F-7 Amortization of ARO Asset
G8: Total Company | I8: Total Company | K8: Total Company | M8: Missouri | O8: Missouri
A9: Line | G9: ARO Asset | I9: ARO Amort. | K9: Annual ARO | M9: Allocation | O9: Annual ARO
A10: No. | C10: Month | E10: Reference | G10: Ending Balance | I10: Period | K10: Amort. Expense | M10: Factor | O10: Amort. Expense
C11: (a) | E11: (b) | G11: (c) | I11: (d) | K11: (e) = (c) / (d) | M11: (f) | O11: (g) = (e) x (f)
A13: ARO Asset Amortization
A14: 1 | C14: Neosho Ridge | E14: (1) | G14: ='C-1 Plant in Service'!I17 -> 12445234.37 | I14: 30 | K14: =G14/I14 -> 414841.1457 | M14: 0.8827583174 | O14: =K14*M14 -> 366204.4717
A15: =A14+1 -> 2 | C15: North Fork Ridge | E15: (1) | G15: ='C-1 Plant in Service'!K17 -> 6570300.81 | I15: =I14 -> 30 | K15: =G15/I15 -> 219010.027 | M15: 0.8827583174 | O15: =K15*M15 -> 193332.9229
A16: =A15+1 -> 3 | C16: Kings Point | E16: (1) | G16: ='C-1 Plant in Service'!M17 -> 6903836.61 | I16: =I15 -> 30 | K16: 230127.887 | M16: 0.8827583174 | O16: 203147.3063
A18: =A16+1 -> 4 | C18: ARO Amort. Total | G18: =SUM(G14:G16) -> 25919371.79 | K18: =SUM(K14:K16) -> 863979.0597 | O18: =SUM(O14:O16) -> 762684.701
J20: Check to Sch. F-1 | K20: =K18-'F-1 Empire Op Inc'!I37 -> 0 | O20: =O18-'F-1 Empire Op Inc'!M37 -> 0
A22: Source:
A23: (1) - Asset Retirement Costs as reflected in Schedule C-1.
A25: Purpose: | B25: To calculate amortization expense for the Asset Retirement Obligations required to be booked for the wind projects.

Sheet F-8 Wind Liab Amort.
A1: =Index!A1 -> The Empire District Electric Company
A2: =Index!A2 -> Test Year Ending September 30, 2020
A3: =Index!A3 -> ER-2021-0312
A4: =CONCATENATE(Index!C37," ",Index!F37) -> Schedule F-8 Wind Revenues Liability Amortization
G8: Total Company | I8: Missouri | K8: Missouri | M8: Liability | O8: Missouri | Q8: Amortization | S8: Missouri
A9: Line | G9: Wind Liability | I9: Allocation | K9: Wind Liability | M9: Allocation | O9: Wind Liability | Q9: Periods | S9: Wind Liability
A10: No. | C10: Description | E10: Reference | G10: Net Revenues | I10: Factor | K10: Net Revenues | M10: Factor | O10: Ending Balance | Q10: (Months) | S10: Amort. Expense
C11: (a) | E11: (b) | G11: (c) | I11: (d) | K11: (e) = (c) x (d) | M11: (f) | O11: (g) = (e) x (f) | Q11: (h) | S11: (i) = (g) / (h)
A13: Wind Revenues Liability - PISA Amortization
A14: 1 | C14: Wind Liability Balance at April 2022 | E14: Schedule B-4 | G14: ='B-4 Wind Rev'!M30 -> 11204272.33 | I14: ='C-1 Plant in Service'!Q17 -> 0.8827583174 | K14: =G14*I14 -> 9890664.591 | M14: 0.85 | O14: =K14*M14 -> 8407064.902 | Q14: 2 | S14: =O14/Q14 -> 4203532.451
A16: =A14+1 -> 2 | C16: Wind Liability Amortization | G16: =SUM(G14:G14) -> 11204272.33 | K16: =SUM(K14:K14) -> 9890664.591 | O16: =SUM(O14:O14) -> 8407064.902 | S16: =SUM(S14:S14) -> 4203532.451
F18: Check to Sch. B-4 | G18: =G16-'B-4 Wind Rev'!M30 -> 0 | K18: =K16-'B-4 Wind Rev'!Q30 -> 0 | O18: =O16-'B-4 Wind Rev'!U30 -> 0
A21: Source: | B21: Allocation factor and amortization period discussed in the Direct Testimony of Sheri Richard.
A23: Purpose: | B23: To calculate amortization expense for the proposed Wind Revenues Liability.

Sheet G-1 Depreciation Expense
A1: =Index!A1 -> The Empire District Electric Company
A2: =Index!A2 -> Test Year Ending September 30, 2020
A3: =Index!A3 -> ER-2021-0312
A4: =CONCATENATE(Index!C40," ",Index!F40) -> Schedule G-1 Depreciation Expense
I8: Neosho Ridge | K8: North Fork Ridge | M8: Kings Point | O8: Other Jurisdiction | Q8: Total Company | S8: Missouri | U8: Neosho Ridge | W8: North Fork Ridge | Y8: Kings Point | AA8: Total | AC8: Other Jurisdiction
A9: Line | I9: Missouri | K9: Missouri | M9: Missouri | O9: Not At Issue | Q9: Wind Project | S9: Depreciation | U9: Missouri | W9: Missouri | Y9: Missouri | AA9: Missouri | AC9: Not At Issue
A10: No. | C10: FERC | E10: Description | G10: Reference | I10: Balance | K10: Balance | M10: Balance | O10: Balance | Q10: Balance | S10: Rates | U10: Expense | W10: Expense | Y10: Expense | AA10: Expense | AC10: Balance
C11: (a) | E11: (b) | G11: (c) | I11: (d) | K11: (e) | M11: (f) | O11: (g) | Q11: (h) | S11: (i) | U11: (j) = (d) * (i) | W11: (k) = (e) * (i) | Y11: (l) = (g) * (h) | AA11: (m) = (j) + (k) + (l) | AC11: (n) = (g) x (i)
A13: PRODUCTION PLANT DEPRECIATION
A14: 1 | C14: ='C-1 Plant in Service'!C13 -> 341-346 | E14: Other Production- Wind | G14: Schedule C-1 | I14: ='C-1 Plant in Service'!S14 -> 255433460.2 | K14: ='C-1 Plant in Service'!U14 -> 121024023.5 | M14: ='C-1 Plant in Service'!W14 -> 137388442 | O14: ='C-1 Plant in Service'!AA14 -> 68245362 | Q14: =SUM(I14:O14) -> 582091287.7 | R14: (1) | S14: 0.0333 | U14: =I14*S14 -> 8505934.224 | W14: =K14*S14 -> 4030099.984 | Y14: =M14*S14 -> 4575035.118 | AA14: =U14+W14+Y14 -> 17111069.33 | AC14: =O14*S14 -> 2272570.555
A15: =A14+1 -> 2 | E15: Total Production Plant Depreciation: | I15: =I14 -> 255433460.2 | K15: =K14 -> 121024023.5 | M15: =M14 -> 137388442 | O15: =O14 -> 68245362 | Q15: =Q14 -> 582091287.7 | U15: =U14 -> 8505934.224 | W15: =W14 -> 4030099.984 | Y15: =Y14 -> 4575035.118 | AA15: =AA14 -> 17111069.33 | AC15: =AC14 -> 2272570.555
A17: TRANSMISION PLANT DEPRECIATION
A18: 3 | C18: 351-356 | E18: Generation Tie Line | G18: Schedule C-1 | I18: ='C-1 Plant in Service'!S21 -> 13801706.35 | K18: ='C-1 Plant in Service'!U21 -> 6617453.323 | M18: ='C-1 Plant in Service'!W21 -> 2056461.788 | O18: ='C-1 Plant in Service'!AA21 -> 4394081.076 | Q18: =SUM(I18:O18) -> 26869702.54 | R18: (2) | S18: 0.02076427405 | U18: =I18*S18 -> 286582.413 | W18: =K18*S18 -> 137406.6143 | Y18: =M18*S18 -> 42700.93613 | AA18: =U18+W18+Y18 -> 466689.9634 | AC18: =O18*S18 -> 91239.90364
E19: Total Transmission Plant Depreciation: | I19: =I18 -> 13801706.35 | K19: =K18 -> 6617453.323 | M19: =M18 -> 2056461.788 | O19: =O18 -> 4394081.076 | Q19: =Q18 -> 26869702.54 | U19: =U18 -> 286582.413 | W19: =W18 -> 137406.6143 | Y19: =Y18 -> 42700.93613 | AA19: =AA18 -> 466689.9634 | AC19: =AC18 -> 91239.90364
A21: GENERAL PLANT DEPRECIATION
A22: =A18+1 -> 4 | C22: 390 | E22: O&M Building | G22: Schedule C-1 | I22: ='C-1 Plant in Service'!S25 -> 2548332.343 | K22: ='C-1 Plant in Service'!U25 -> 579198.6502 | M22: ='C-1 Plant in Service'!W25 -> 1189017.072 | O22: ='C-1 Plant in Service'!AA25 -> 628616.2894 | Q22: =SUM(I22:O22) -> 4945164.354 | R22: (3) | S22: 0.0262 | U22: =I22*S22 -> 66766.3074 | W22: =K22*S22 -> 15175.00463 | Y22: =M22*S22 -> 31152.24727 | AA22: =U22+W22+Y22 -> 113093.5593 | AC22: =O22*S22 -> 16469.74678
A23: =A22+1 -> 5 | E23: Total General Plant Depreciation: | I23: =SUM(I22:I22) -> 2548332.343 | K23: =K22 -> 579198.6502 | M23: =SUM(M22:M22) -> 1189017.072 | O23: =SUM(O22:O22) -> 628616.2894 | Q23: =SUM(Q22:Q22) -> 4945164.354 | U23: =U22 -> 66766.3074 | W23: =W22 -> 15175.00463 | Y23: =Y22 -> 31152.24727 | AA23: =SUM(AA21:AA22) -> 113093.5593 | AC23: =AC22 -> 16469.74678
A25: =A23+1 -> 6 | E25: Total Missouri Depreciation Expense | G25: Schedule C-1 | I25: =I15+I19+I23 -> 271783498.9 | K25: =K15+K19+K23 -> 128220675.5 | M25: =M15+M19+M23 -> 140633920.8 | O25: =O15+O19+O23 -> 73268059.37 | Q25: =Q15+Q19+Q23 -> 613906154.6 | U25: =U15+U19+U23 -> 8859282.944 | W25: =W15+W19+W23 -> 4182681.603 | Y25: =Y15+Y19+Y23 -> 4648888.301 | AA25: =AA15+AA19+AA23 -> 17690852.85 | AC25: =AC15+AC19+AC23 -> 2380280.205
AB27: Total Company Sum: | AC27: =AC25+AA25 -> 20071133.05
A28: Footnotes: | AB28: Check to D-1: | AC28: =AC27-'D-1 Accumulated Depreciation'!I24 -> 0
A29: (1) - MO Report & Order sets depreciation rate at 3.33%
A30: (2) - Composite Depreciation Rate for FERC Accounts 351-356, EXP ADJ 20 Annualized Depreciation Expense.
A31: (3) - Composite Depreciation Rate for FERC Accounts 341, EXP ADJ 20 Annualized Depreciation Expense.
A33: Source: | B33: See reference column (c).
A35: Purpose: | B35: To calculate the Depreciation Expense based upon Plant in Service at the end of the Tru-Up Period.
